Workbook

Sheet Viitenumber
B9: Algne number | C9: Kontrolljärk | D9: Viitenumber
B10: 3698525 | C10: =kontroll_nr(B10) -> 4 | D10: =IFERROR(viitenumber(B10),"") -> 36985254
B11: 201911458 | C11: =kontroll_nr(B11) -> 7 | D11: =IFERROR(viitenumber(B11),"") -> 2019114587
B12: 369 | C12: =kontroll_nr(B12) -> 6 | D12: =IFERROR(viitenumber(B12),"") -> 3696
B13: A1458 | C13: =kontroll_nr(B13) ->  | D13: =IFERROR(viitenumber(B13),"") -> 
B14: 20085789125 | C14: =kontroll_nr(B14) -> 9 | D14: =IFERROR(viitenumber(B14),"") -> 200857891259
B15: 25874 | C15: =kontroll_nr(B15) -> 2 | D15: =IFERROR(viitenumber(B15),"") -> 258742
B16: 134589 | C16: =kontroll_nr(B16) -> 0 | D16: =IFERROR(viitenumber(B16),"") -> 1345890
B17: 1 | C17: =kontroll_nr(B17) -> 3 | D17: =IFERROR(viitenumber(B17),"") -> 13

Sheet tudengid
A4: Rühm | B4: Eesnimi | C4: Perenimi | D4: Nimi
A5: R2 | B5: Katrin | C5: Laurits | D5: =Eesnimi & " " &Perenimi -> Katrin Laurits
A6: R1 | B6: Anette | C6: Lepp | D6: Anette Lepp
A7: R3 | B7: Reimo | C7: Kala | D7: Reimo Kala
A8: R3 | B8: Egert | C8: Vint | D8: Egert Vint
A9: R2 | B9: Carmen | C9: Sõrmus | D9: Carmen Sõrmus
A10: R2 | B10: Armin | C10: Kaasik | D10: Armin Kaasik
A11: R3 | B11: Jana | C11: Kiisk | D11: Jana Kiisk
A12: R1 | B12: Kaspar | C12: Raude | D12: Kaspar Raude
A13: R3 | B13: Karin | C13: Saar | D13: Karin Saar
A14: R2 | B14: Hanna | C14: Laid | D14: Hanna Laid
A15: R1 | B15: Mihkel | C15: Kulp | D15: Mihkel Kulp
A16: R1 | B16: Markus | C16: Niidas | D16: Markus Niidas
A17: R2 | B17: Alari | C17: Suur | D17: Alari Suur
A18: R1 | B18: Erik | C18: Pärn | D18: Erik Pärn
A19: R1 | B19: Martin | C19: Aavik | D19: Martin Aavik
A20: R3 | B20: Maarja | C20: Pihlak | D20: Maarja Pihlak
A21: R2 | B21: Urmas | C21: Lõhmus | D21: Urmas Lõhmus
A22: R3 | B22: Lauri | C22: Vahtra | D22: Lauri Vahtra
A23: R1 | B23: Emili | C23: Loorits | D23: Emili Loorits
A24: R2 | B24: Jaagup | C24: Kivi | D24: Jaagup Kivi
A25: R3 | B25: Joonas | C25: Haljas | D25: Joonas Haljas
A26: R1 | B26: Robert | C26: Lentso | D26: Robert Lentso
A27: R3 | B27: Viktoria | C27: Lumi | D27: Viktoria Lumi
A28: R2 | B28: Sander | C28: Kell | D28: Sander Kell
A29: R1 | B29: Hans | C29: Kukk | D29: Hans Kukk
A30: R2 | B30: Diana | C30: Taal | D30: Diana Taal
A31: R3 | B31: Kertu | C31: Heinsoo | D31: Kertu Heinsoo
A32: R3 | B32: Tarvo | C32: Järv | D32: Tarvo Järv
A33: R1 | B33: Paul | C33: Hein | D33: Paul Hein
A34: R1 | B34: Artur | C34: Piiri | D34: Artur Piiri
A35: R2 | B35: Getlin | C35: Allas | D35: Getlin Allas
A36: R1 | B36: Brita | C36: Kaljula | D36: Brita Kaljula
A37: R1 | B37: Anna | C37: Koel | D37: Anna Koel
A38: R3 | B38: Kristina | C38: Merila | D38: Kristina Merila
A39: R2 | B39: Rasmus | C39: Kroon | D39: Rasmus Kroon

Sheet testid
I2: 1. Leida iga tudengi iga testi kolme viimase testisoorituse aritmeetiline keskmine | P2: 1. Leida iga tudengi iga testi kolme viimase testisoorituse aritmeetiline keskmine
P3: (valemiga) | U3: =_xlfn.FORMULATEXT(U7) -> =INDEX(Rühm;MATCH(P7;Harjutus14.xlsm!Nimi;0))
A4: Test | B4: Nimi | C4: Aeg | D4: Tulemus | E4: Jnr | F4: Rühm | I4: Jnr | J4: (Multiple Items) | Q4: =_xlfn.FORMULATEXT(Q7) -> =AVERAGEIFS(Tulemus;Nimi;$P7;Test;Q$6;Jnr;"<=3") | X4: 2. Iga tudengi iga testi parim tulemus (liigendtabeliga) | AE4: 2. Iga tudengi iga testi parim tulemus (valemiga)
A5: Test02 | B5: Robert Lentso | C5: 2019-11-12T13:16:35.251 | D5: 37 | E5: =COUNTIFS(Test,A5,Nimi,B5,Aeg,">="&C5) -> 8
A6: Test01 | B6: Robert Lentso | C6: 2019-11-30T09:20:24.603 | D6: 22 | E6: =COUNTIFS(Test,A6,Nimi,B6,Aeg,">="&C6) -> 1 | I6: Average of Tulemus | J6: Column Labels | P6: Nimi | Q6: Test01 | R6: Test02 | S6: Test03 | T6: Test04 | U6: Rühm | X6: Max. of Tulemus | Y6: Column Labels | AE6: Nimi | AF6: Test01 | AG6: Test02 | AH6: Test03 | AI6: Test04
A7: Test03 | B7: Sander Kell | C7: 2019-11-14T08:35:59.974 | D7: 55 | E7: =COUNTIFS(Test,A7,Nimi,B7,Aeg,">="&C7) -> 2 | I7: Row Labels | J7: Test01 | K7: Test02 | L7: Test03 | M7: Test04 | N7: Grand Total | P7: Karin Saar | Q7: =AVERAGEIFS(Tulemus,Nimi,$P7,Test,Q$6,Jnr,"<=3") -> 92 | R7: =AVERAGEIFS(Tulemus,Nimi,$P7,Test,R$6,Jnr,"<=3") -> 58.33333333 | S7: =AVERAGEIFS(Tulemus,Nimi,$P7,Test,S$6,Jnr,"<=3") -> 71.33333333 | T7: =AVERAGEIFS(Tulemus,Nimi,$P7,Test,T$6,Jnr,"<=3") -> 65 | U7: =INDEX(Rühm,MATCH(P7,[0]!Nimi,0)) -> R3 | X7: Row Labels | Y7: Test01 | Z7: Test02 | AA7: Test03 | AB7: Test04 | AC7: Grand Total | AE7: Alari Suur | AF7: =_xlfn.MAXIFS(Tulemus,Nimi,$AE7,Test,AF$6) -> 96 | AG7: =_xlfn.MAXIFS(Tulemus,Nimi,$AE7,Test,AG$6) -> 91 | AH7: =_xlfn.MAXIFS(Tulemus,Nimi,$AE7,Test,AH$6) -> 88 | AI7: =_xlfn.MAXIFS(Tulemus,Nimi,$AE7,Test,AI$6) -> 93
A8: Test04 | B8: Kristina Merila | C8: 2019-11-21T20:48:11.179 | D8: 78 | E8: =COUNTIFS(Test,A8,Nimi,B8,Aeg,">="&C8) -> 5 | I8: Alari Suur | J8: 79 | K8: 68.66666667 | L8: 61 | M8: 56 | N8: 66.16666667 | P8: Maarja Pihlak | Q8: =AVERAGEIFS(Tulemus,Nimi,$P8,Test,Q$6,Jnr,"<=3") -> 92 | R8: =AVERAGEIFS(Tulemus,Nimi,$P8,Test,R$6,Jnr,"<=3") -> 69 | S8: =AVERAGEIFS(Tulemus,Nimi,$P8,Test,S$6,Jnr,"<=3") -> 79.66666667 | T8: =AVERAGEIFS(Tulemus,Nimi,$P8,Test,T$6,Jnr,"<=3") -> 62.66666667 | U8: =INDEX(Rühm,MATCH(P8,[0]!Nimi,0)) -> R3 | X8: Alari Suur | Y8: 96 | Z8: 91 | AA8: 88 | AB8: 93 | AC8: 96 | AE8: Anette Lepp | AF8: =_xlfn.MAXIFS(Tulemus,Nimi,$AE8,Test,AF$6) -> 94 | AG8: =_xlfn.MAXIFS(Tulemus,Nimi,$AE8,Test,AG$6) -> 99 | AH8: =_xlfn.MAXIFS(Tulemus,Nimi,$AE8,Test,AH$6) -> 97 | AI8: =_xlfn.MAXIFS(Tulemus,Nimi,$AE8,Test,AI$6) -> 80
A9: Test01 | B9: Kertu Heinsoo | C9: 2019-11-28T19:05:40.022 | D9: 70 | E9: =COUNTIFS(Test,A9,Nimi,B9,Aeg,">="&C9) -> 3 | I9: Anette Lepp | J9: 76.33333333 | K9: 63.33333333 | L9: 71 | M9: 37.66666667 | N9: 62.08333333 | P9: Jaagup Kivi | Q9: =AVERAGEIFS(Tulemus,Nimi,$P9,Test,Q$6,Jnr,"<=3") -> 85.66666667 | R9: =AVERAGEIFS(Tulemus,Nimi,$P9,Test,R$6,Jnr,"<=3") -> 70.66666667 | S9: =AVERAGEIFS(Tulemus,Nimi,$P9,Test,S$6,Jnr,"<=3") -> 54.33333333 | T9: =AVERAGEIFS(Tulemus,Nimi,$P9,Test,T$6,Jnr,"<=3") -> 65 | U9: =INDEX(Rühm,MATCH(P9,[0]!Nimi,0)) -> R2 | X9: Anette Lepp | Y9: 94 | Z9: 99 | AA9: 97 | AB9: 80 | AC9: 99 | AE9: Anna Koel | AF9: =_xlfn.MAXIFS(Tulemus,Nimi,$AE9,Test,AF$6) -> 72 | AG9: =_xlfn.MAXIFS(Tulemus,Nimi,$AE9,Test,AG$6) -> 99 | AH9: =_xlfn.MAXIFS(Tulemus,Nimi,$AE9,Test,AH$6) -> 81 | AI9: =_xlfn.MAXIFS(Tulemus,Nimi,$AE9,Test,AI$6) -> 100
A10: Test03 | B10: Kertu Heinsoo | C10: 2019-11-20T20:41:35.651 | D10: 75 | E10: =COUNTIFS(Test,A10,Nimi,B10,Aeg,">="&C10) -> 6 | I10: Anna Koel | J10: 51.33333333 | K10: 50 | L10: 48.33333333 | M10: 59.66666667 | N10: 52.33333333 | P10: Brita Kaljula | Q10: =AVERAGEIFS(Tulemus,Nimi,$P10,Test,Q$6,Jnr,"<=3") -> 83 | R10: =AVERAGEIFS(Tulemus,Nimi,$P10,Test,R$6,Jnr,"<=3") -> 62.66666667 | S10: =AVERAGEIFS(Tulemus,Nimi,$P10,Test,S$6,Jnr,"<=3") -> 54.33333333 | T10: =AVERAGEIFS(Tulemus,Nimi,$P10,Test,T$6,Jnr,"<=3") -> 43.66666667 | U10: =INDEX(Rühm,MATCH(P10,[0]!Nimi,0)) -> R1 | X10: Anna Koel | Y10: 72 | Z10: 99 | AA10: 81 | AB10: 100 | AC10: 100 | AE10: Armin Kaasik | AF10: =_xlfn.MAXIFS(Tulemus,Nimi,$AE10,Test,AF$6) -> 95 | AG10: =_xlfn.MAXIFS(Tulemus,Nimi,$AE10,Test,AG$6) -> 79 | AH10: =_xlfn.MAXIFS(Tulemus,Nimi,$AE10,Test,AH$6) -> 100 | AI10: =_xlfn.MAXIFS(Tulemus,Nimi,$AE10,Test,AI$6) -> 56
A11: Test01 | B11: Urmas Lõhmus | C11: 2019-11-13T14:20:00.655 | D11: 45 | E11: =COUNTIFS(Test,A11,Nimi,B11,Aeg,">="&C11) -> 4 | I11: Armin Kaasik | J11: 75 | K11: 46.66666667 | L11: 61.66666667 | M11: 42 | N11: 56.33333333 | P11: Alari Suur | Q11: =AVERAGEIFS(Tulemus,Nimi,$P11,Test,Q$6,Jnr,"<=3") -> 79 | R11: =AVERAGEIFS(Tulemus,Nimi,$P11,Test,R$6,Jnr,"<=3") -> 68.66666667 | S11: =AVERAGEIFS(Tulemus,Nimi,$P11,Test,S$6,Jnr,"<=3") -> 61 | T11: =AVERAGEIFS(Tulemus,Nimi,$P11,Test,T$6,Jnr,"<=3") -> 56 | U11: =INDEX(Rühm,MATCH(P11,[0]!Nimi,0)) -> R2 | X11: Armin Kaasik | Y11: 95 | Z11: 79 | AA11: 100 | AB11: 56 | AC11: 100 | AE11: Artur Piiri | AF11: =_xlfn.MAXIFS(Tulemus,Nimi,$AE11,Test,AF$6) -> 98 | AG11: =_xlfn.MAXIFS(Tulemus,Nimi,$AE11,Test,AG$6) -> 97 | AH11: =_xlfn.MAXIFS(Tulemus,Nimi,$AE11,Test,AH$6) -> 99 | AI11: =_xlfn.MAXIFS(Tulemus,Nimi,$AE11,Test,AI$6) -> 93
A12: Test04 | B12: Robert Lentso | C12: 2019-11-17T20:51:19.625 | D12: 59 | E12: =COUNTIFS(Test,A12,Nimi,B12,Aeg,">="&C12) -> 3 | I12: Artur Piiri | J12: 68.33333333 | K12: 84.33333333 | L12: 56.66666667 | M12: 88 | N12: 74.33333333 | P12: Joonas Haljas | Q12: =AVERAGEIFS(Tulemus,Nimi,$P12,Test,Q$6,Jnr,"<=3") -> 78.33333333 | R12: =AVERAGEIFS(Tulemus,Nimi,$P12,Test,R$6,Jnr,"<=3") -> 35.66666667 | S12: =AVERAGEIFS(Tulemus,Nimi,$P12,Test,S$6,Jnr,"<=3") -> 66.66666667 | T12: =AVERAGEIFS(Tulemus,Nimi,$P12,Test,T$6,Jnr,"<=3") -> 57 | U12: =INDEX(Rühm,MATCH(P12,[0]!Nimi,0)) -> R3 | X12: Artur Piiri | Y12: 98 | Z12: 97 | AA12: 99 | AB12: 93 | AC12: 99 | AE12: Brita Kaljula | AF12: =_xlfn.MAXIFS(Tulemus,Nimi,$AE12,Test,AF$6) -> 99 | AG12: =_xlfn.MAXIFS(Tulemus,Nimi,$AE12,Test,AG$6) -> 100 | AH12: =_xlfn.MAXIFS(Tulemus,Nimi,$AE12,Test,AH$6) -> 97 | AI12: =_xlfn.MAXIFS(Tulemus,Nimi,$AE12,Test,AI$6) -> 100
A13: Test03 | B13: Joonas Haljas | C13: 2019-11-23T08:56:43.995 | D13: 40 | E13: =COUNTIFS(Test,A13,Nimi,B13,Aeg,">="&C13) -> 2 | I13: Brita Kaljula | J13: 83 | K13: 62.66666667 | L13: 54.33333333 | M13: 43.66666667 | N13: 60.91666667 | P13: Anette Lepp | Q13: =AVERAGEIFS(Tulemus,Nimi,$P13,Test,Q$6,Jnr,"<=3") -> 76.33333333 | R13: =AVERAGEIFS(Tulemus,Nimi,$P13,Test,R$6,Jnr,"<=3") -> 63.33333333 | S13: =AVERAGEIFS(Tulemus,Nimi,$P13,Test,S$6,Jnr,"<=3") -> 71 | T13: =AVERAGEIFS(Tulemus,Nimi,$P13,Test,T$6,Jnr,"<=3") -> 37.66666667 | U13: =INDEX(Rühm,MATCH(P13,[0]!Nimi,0)) -> R1 | X13: Brita Kaljula | Y13: 99 | Z13: 100 | AA13: 97 | AB13: 100 | AC13: 100 | AE13: Carmen Sõrmus | AF13: =_xlfn.MAXIFS(Tulemus,Nimi,$AE13,Test,AF$6) -> 70 | AG13: =_xlfn.MAXIFS(Tulemus,Nimi,$AE13,Test,AG$6) -> 97 | AH13: =_xlfn.MAXIFS(Tulemus,Nimi,$AE13,Test,AH$6) -> 67 | AI13: =_xlfn.MAXIFS(Tulemus,Nimi,$AE13,Test,AI$6) -> 86
A14: Test04 | B14: Urmas Lõhmus | C14: 2019-11-23T15:08:20.630 | D14: 96 | E14: =COUNTIFS(Test,A14,Nimi,B14,Aeg,">="&C14) -> 2 | I14: Carmen Sõrmus | J14: 31.33333333 | K14: 57.33333333 | L14: 45.66666667 | M14: 73.33333333 | N14: 51.91666667 | P14: Armin Kaasik | Q14: =AVERAGEIFS(Tulemus,Nimi,$P14,Test,Q$6,Jnr,"<=3") -> 75 | R14: =AVERAGEIFS(Tulemus,Nimi,$P14,Test,R$6,Jnr,"<=3") -> 46.66666667 | S14: =AVERAGEIFS(Tulemus,Nimi,$P14,Test,S$6,Jnr,"<=3") -> 61.66666667 | T14: =AVERAGEIFS(Tulemus,Nimi,$P14,Test,T$6,Jnr,"<=3") -> 42 | U14: =INDEX(Rühm,MATCH(P14,[0]!Nimi,0)) -> R2 | X14: Carmen Sõrmus | Y14: 70 | Z14: 97 | AA14: 67 | AB14: 86 | AC14: 97 | AE14: Diana Taal | AF14: =_xlfn.MAXIFS(Tulemus,Nimi,$AE14,Test,AF$6) -> 86 | AG14: =_xlfn.MAXIFS(Tulemus,Nimi,$AE14,Test,AG$6) -> 93 | AH14: =_xlfn.MAXIFS(Tulemus,Nimi,$AE14,Test,AH$6) -> 95 | AI14: =_xlfn.MAXIFS(Tulemus,Nimi,$AE14,Test,AI$6) -> 93
A15: Test02 | B15: Robert Lentso | C15: 2019-11-13T17:35:12.257 | D15: 68 | E15: =COUNTIFS(Test,A15,Nimi,B15,Aeg,">="&C15) -> 7 | I15: Diana Taal | J15: 53 | K15: 79.33333333 | L15: 62.66666667 | M15: 78 | N15: 68.25 | P15: Hans Kukk | Q15: =AVERAGEIFS(Tulemus,Nimi,$P15,Test,Q$6,Jnr,"<=3") -> 75 | R15: =AVERAGEIFS(Tulemus,Nimi,$P15,Test,R$6,Jnr,"<=3") -> 58.66666667 | S15: =AVERAGEIFS(Tulemus,Nimi,$P15,Test,S$6,Jnr,"<=3") -> 69.66666667 | T15: =AVERAGEIFS(Tulemus,Nimi,$P15,Test,T$6,Jnr,"<=3") -> 53 | U15: =INDEX(Rühm,MATCH(P15,[0]!Nimi,0)) -> R1 | X15: Diana Taal | Y15: 86 | Z15: 93 | AA15: 95 | AB15: 93 | AC15: 95 | AE15: Egert Vint | AF15: =_xlfn.MAXIFS(Tulemus,Nimi,$AE15,Test,AF$6) -> 100 | AG15: =_xlfn.MAXIFS(Tulemus,Nimi,$AE15,Test,AG$6) -> 81 | AH15: =_xlfn.MAXIFS(Tulemus,Nimi,$AE15,Test,AH$6) -> 84 | AI15: =_xlfn.MAXIFS(Tulemus,Nimi,$AE15,Test,AI$6) -> 78
A16: Test03 | B16: Kristina Merila | C16: 2019-11-15T16:15:08.575 | D16: 59 | E16: =COUNTIFS(Test,A16,Nimi,B16,Aeg,">="&C16) -> 6 | I16: Egert Vint | J16: 44 | K16: 41.66666667 | L16: 64 | M16: 38.33333333 | N16: 47 | P16: Reimo Kala | Q16: =AVERAGEIFS(Tulemus,Nimi,$P16,Test,Q$6,Jnr,"<=3") -> 75 | R16: =AVERAGEIFS(Tulemus,Nimi,$P16,Test,R$6,Jnr,"<=3") -> 79.66666667 | S16: =AVERAGEIFS(Tulemus,Nimi,$P16,Test,S$6,Jnr,"<=3") -> 51.66666667 | T16: =AVERAGEIFS(Tulemus,Nimi,$P16,Test,T$6,Jnr,"<=3") -> 76.33333333 | U16: =INDEX(Rühm,MATCH(P16,[0]!Nimi,0)) -> R3 | X16: Egert Vint | Y16: 100 | Z16: 81 | AA16: 84 | AB16: 78 | AC16: 100 | AE16: Emili Loorits | AF16: =_xlfn.MAXIFS(Tulemus,Nimi,$AE16,Test,AF$6) -> 69 | AG16: =_xlfn.MAXIFS(Tulemus,Nimi,$AE16,Test,AG$6) -> 100 | AH16: =_xlfn.MAXIFS(Tulemus,Nimi,$AE16,Test,AH$6) -> 85 | AI16: =_xlfn.MAXIFS(Tulemus,Nimi,$AE16,Test,AI$6) -> 84
A17: Test02 | B17: Hans Kukk | C17: 2019-11-01T10:22:42.466 | D17: 26 | E17: =COUNTIFS(Test,A17,Nimi,B17,Aeg,">="&C17) -> 9 | I17: Emili Loorits | J17: 56.33333333 | K17: 74.66666667 | L17: 31.66666667 | M17: 44 | N17: 51.66666667 | P17: Erik Pärn | Q17: =AVERAGEIFS(Tulemus,Nimi,$P17,Test,Q$6,Jnr,"<=3") -> 71.33333333 | R17: =AVERAGEIFS(Tulemus,Nimi,$P17,Test,R$6,Jnr,"<=3") -> 59 | S17: =AVERAGEIFS(Tulemus,Nimi,$P17,Test,S$6,Jnr,"<=3") -> 66 | T17: =AVERAGEIFS(Tulemus,Nimi,$P17,Test,T$6,Jnr,"<=3") -> 86.66666667 | U17: =INDEX(Rühm,MATCH(P17,[0]!Nimi,0)) -> R1 | X17: Emili Loorits | Y17: 69 | Z17: 100 | AA17: 85 | AB17: 84 | AC17: 100 | AE17: Erik Pärn | AF17: =_xlfn.MAXIFS(Tulemus,Nimi,$AE17,Test,AF$6) -> 93 | AG17: =_xlfn.MAXIFS(Tulemus,Nimi,$AE17,Test,AG$6) -> 94 | AH17: =_xlfn.MAXIFS(Tulemus,Nimi,$AE17,Test,AH$6) -> 84 | AI17: =_xlfn.MAXIFS(Tulemus,Nimi,$AE17,Test,AI$6) -> 98
A18: Test03 | B18: Rasmus Kroon | C18: 2019-11-11T14:22:22.170 | D18: 73 | E18: =COUNTIFS(Test,A18,Nimi,B18,Aeg,">="&C18) -> 7 | I18: Erik Pärn | J18: 71.33333333 | K18: 59 | L18: 66 | M18: 86.66666667 | N18: 70.75 | P18: Hanna Laid | Q18: =AVERAGEIFS(Tulemus,Nimi,$P18,Test,Q$6,Jnr,"<=3") -> 70.33333333 | R18: =AVERAGEIFS(Tulemus,Nimi,$P18,Test,R$6,Jnr,"<=3") -> 53.66666667 | S18: =AVERAGEIFS(Tulemus,Nimi,$P18,Test,S$6,Jnr,"<=3") -> 69.66666667 | T18: =AVERAGEIFS(Tulemus,Nimi,$P18,Test,T$6,Jnr,"<=3") -> 49.33333333 | U18: =INDEX(Rühm,MATCH(P18,[0]!Nimi,0)) -> R2 | X18: Erik Pärn | Y18: 93 | Z18: 94 | AA18: 84 | AB18: 98 | AC18: 98 | AE18: Getlin Allas | AF18: =_xlfn.MAXIFS(Tulemus,Nimi,$AE18,Test,AF$6) -> 97 | AG18: =_xlfn.MAXIFS(Tulemus,Nimi,$AE18,Test,AG$6) -> 92 | AH18: =_xlfn.MAXIFS(Tulemus,Nimi,$AE18,Test,AH$6) -> 85 | AI18: =_xlfn.MAXIFS(Tulemus,Nimi,$AE18,Test,AI$6) -> 98
A19: Test01 | B19: Maarja Pihlak | C19: 2019-11-29T09:41:58.019 | D19: 89 | E19: =COUNTIFS(Test,A19,Nimi,B19,Aeg,">="&C19) -> 1 | I19: Getlin Allas | J19: 67.33333333 | K19: 62.66666667 | L19: 63.66666667 | M19: 51.66666667 | N19: 61.33333333 | P19: Artur Piiri | Q19: =AVERAGEIFS(Tulemus,Nimi,$P19,Test,Q$6,Jnr,"<=3") -> 68.33333333 | R19: =AVERAGEIFS(Tulemus,Nimi,$P19,Test,R$6,Jnr,"<=3") -> 84.33333333 | S19: =AVERAGEIFS(Tulemus,Nimi,$P19,Test,S$6,Jnr,"<=3") -> 56.66666667 | T19: =AVERAGEIFS(Tulemus,Nimi,$P19,Test,T$6,Jnr,"<=3") -> 88 | U19: =INDEX(Rühm,MATCH(P19,[0]!Nimi,0)) -> R1 | X19: Getlin Allas | Y19: 97 | Z19: 92 | AA19: 85 | AB19: 98 | AC19: 98 | AE19: Hanna Laid | AF19: =_xlfn.MAXIFS(Tulemus,Nimi,$AE19,Test,AF$6) -> 92 | AG19: =_xlfn.MAXIFS(Tulemus,Nimi,$AE19,Test,AG$6) -> 84 | AH19: =_xlfn.MAXIFS(Tulemus,Nimi,$AE19,Test,AH$6) -> 99 | AI19: =_xlfn.MAXIFS(Tulemus,Nimi,$AE19,Test,AI$6) -> 99
A20: Test01 | B20: Sander Kell | C20: 2019-11-09T13:18:08.716 | D20: 30 | E20: =COUNTIFS(Test,A20,Nimi,B20,Aeg,">="&C20) -> 9 | I20: Hanna Laid | J20: 70.33333333 | K20: 53.66666667 | L20: 69.66666667 | M20: 49.33333333 | N20: 60.75 | P20: Getlin Allas | Q20: =AVERAGEIFS(Tulemus,Nimi,$P20,Test,Q$6,Jnr,"<=3") -> 67.33333333 | R20: =AVERAGEIFS(Tulemus,Nimi,$P20,Test,R$6,Jnr,"<=3") -> 62.66666667 | S20: =AVERAGEIFS(Tulemus,Nimi,$P20,Test,S$6,Jnr,"<=3") -> 63.66666667 | T20: =AVERAGEIFS(Tulemus,Nimi,$P20,Test,T$6,Jnr,"<=3") -> 51.66666667 | U20: =INDEX(Rühm,MATCH(P20,[0]!Nimi,0)) -> R2 | X20: Hanna Laid | Y20: 92 | Z20: 84 | AA20: 99 | AB20: 99 | AC20: 99 | AE20: Hans Kukk | AF20: =_xlfn.MAXIFS(Tulemus,Nimi,$AE20,Test,AF$6) -> 100 | AG20: =_xlfn.MAXIFS(Tulemus,Nimi,$AE20,Test,AG$6) -> 97 | AH20: =_xlfn.MAXIFS(Tulemus,Nimi,$AE20,Test,AH$6) -> 100 | AI20: =_xlfn.MAXIFS(Tulemus,Nimi,$AE20,Test,AI$6) -> 96
A21: Test04 | B21: Joonas Haljas | C21: 2019-11-22T16:27:02.789 | D21: 57 | E21: =COUNTIFS(Test,A21,Nimi,B21,Aeg,">="&C21) -> 1 | I21: Hans Kukk | J21: 75 | K21: 58.66666667 | L21: 69.66666667 | M21: 53 | N21: 64.08333333 | P21: Rasmus Kroon | Q21: =AVERAGEIFS(Tulemus,Nimi,$P21,Test,Q$6,Jnr,"<=3") -> 66 | R21: =AVERAGEIFS(Tulemus,Nimi,$P21,Test,R$6,Jnr,"<=3") -> 61.33333333 | S21: =AVERAGEIFS(Tulemus,Nimi,$P21,Test,S$6,Jnr,"<=3") -> 35.33333333 | T21: =AVERAGEIFS(Tulemus,Nimi,$P21,Test,T$6,Jnr,"<=3") -> 84 | U21: =INDEX(Rühm,MATCH(P21,[0]!Nimi,0)) -> R2 | X21: Hans Kukk | Y21: 100 | Z21: 97 | AA21: 100 | AB21: 96 | AC21: 100 | AE21: Jaagup Kivi | AF21: =_xlfn.MAXIFS(Tulemus,Nimi,$AE21,Test,AF$6) -> 98 | AG21: =_xlfn.MAXIFS(Tulemus,Nimi,$AE21,Test,AG$6) -> 97 | AH21: =_xlfn.MAXIFS(Tulemus,Nimi,$AE21,Test,AH$6) -> 87 | AI21: =_xlfn.MAXIFS(Tulemus,Nimi,$AE21,Test,AI$6) -> 93
A22: Test02 | B22: Reimo Kala | C22: 2019-11-22T16:20:40.046 | D22: 87 | E22: =COUNTIFS(Test,A22,Nimi,B22,Aeg,">="&C22) -> 2 | I22: Jaagup Kivi | J22: 85.66666667 | K22: 70.66666667 | L22: 54.33333333 | M22: 65 | N22: 68.91666667 | P22: Kertu Heinsoo | Q22: =AVERAGEIFS(Tulemus,Nimi,$P22,Test,Q$6,Jnr,"<=3") -> 61.66666667 | R22: =AVERAGEIFS(Tulemus,Nimi,$P22,Test,R$6,Jnr,"<=3") -> 55.66666667 | S22: =AVERAGEIFS(Tulemus,Nimi,$P22,Test,S$6,Jnr,"<=3") -> 44 | T22: =AVERAGEIFS(Tulemus,Nimi,$P22,Test,T$6,Jnr,"<=3") -> 54 | U22: =INDEX(Rühm,MATCH(P22,[0]!Nimi,0)) -> R3 | X22: Jaagup Kivi | Y22: 98 | Z22: 97 | AA22: 87 | AB22: 93 | AC22: 98 | AE22: Jana Kiisk | AF22: =_xlfn.MAXIFS(Tulemus,Nimi,$AE22,Test,AF$6) -> 84 | AG22: =_xlfn.MAXIFS(Tulemus,Nimi,$AE22,Test,AG$6) -> 91 | AH22: =_xlfn.MAXIFS(Tulemus,Nimi,$AE22,Test,AH$6) -> 90 | AI22: =_xlfn.MAXIFS(Tulemus,Nimi,$AE22,Test,AI$6) -> 91
A23: Test02 | B23: Urmas Lõhmus | C23: 2019-11-02T10:17:31.185 | D23: 45 | E23: =COUNTIFS(Test,A23,Nimi,B23,Aeg,">="&C23) -> 10 | I23: Jana Kiisk | J23: 54 | K23: 63 | L23: 64.66666667 | M23: 91 | N23: 63.6 | P23: Tarvo Järv | Q23: =AVERAGEIFS(Tulemus,Nimi,$P23,Test,Q$6,Jnr,"<=3") -> 61.66666667 | R23: =AVERAGEIFS(Tulemus,Nimi,$P23,Test,R$6,Jnr,"<=3") -> 49.33333333 | S23: =AVERAGEIFS(Tulemus,Nimi,$P23,Test,S$6,Jnr,"<=3") -> 53.33333333 | T23: =AVERAGEIFS(Tulemus,Nimi,$P23,Test,T$6,Jnr,"<=3") -> 91 | U23: =INDEX(Rühm,MATCH(P23,[0]!Nimi,0)) -> R3 | X23: Jana Kiisk | Y23: 84 | Z23: 91 | AA23: 90 | AB23: 91 | AC23: 91 | AE23: Joonas Haljas | AF23: =_xlfn.MAXIFS(Tulemus,Nimi,$AE23,Test,AF$6) -> 92 | AG23: =_xlfn.MAXIFS(Tulemus,Nimi,$AE23,Test,AG$6) -> 98 | AH23: =_xlfn.MAXIFS(Tulemus,Nimi,$AE23,Test,AH$6) -> 99 | AI23: =_xlfn.MAXIFS(Tulemus,Nimi,$AE23,Test,AI$6) -> 86
A24: Test03 | B24: Martin Aavik | C24: 2019-11-25T21:13:36.966 | D24: 63 | E24: =COUNTIFS(Test,A24,Nimi,B24,Aeg,">="&C24) -> 3 | I24: Joonas Haljas | J24: 78.33333333 | K24: 35.66666667 | L24: 66.66666667 | M24: 57 | N24: 59.41666667 | P24: Urmas Lõhmus | Q24: =AVERAGEIFS(Tulemus,Nimi,$P24,Test,Q$6,Jnr,"<=3") -> 60.66666667 | R24: =AVERAGEIFS(Tulemus,Nimi,$P24,Test,R$6,Jnr,"<=3") -> 45 | S24: =AVERAGEIFS(Tulemus,Nimi,$P24,Test,S$6,Jnr,"<=3") -> 57.33333333 | T24: =AVERAGEIFS(Tulemus,Nimi,$P24,Test,T$6,Jnr,"<=3") -> 77 | U24: =INDEX(Rühm,MATCH(P24,[0]!Nimi,0)) -> R2 | X24: Joonas Haljas | Y24: 92 | Z24: 98 | AA24: 99 | AB24: 86 | AC24: 99 | AE24: Karin Saar | AF24: =_xlfn.MAXIFS(Tulemus,Nimi,$AE24,Test,AF$6) -> 95 | AG24: =_xlfn.MAXIFS(Tulemus,Nimi,$AE24,Test,AG$6) -> 80 | AH24: =_xlfn.MAXIFS(Tulemus,Nimi,$AE24,Test,AH$6) -> 96 | AI24: =_xlfn.MAXIFS(Tulemus,Nimi,$AE24,Test,AI$6) -> 98
A25: Test02 | B25: Lauri Vahtra | C25: 2019-11-25T17:23:27.962 | D25: 27 | E25: =COUNTIFS(Test,A25,Nimi,B25,Aeg,">="&C25) -> 3 | I25: Karin Saar | J25: 92 | K25: 58.33333333 | L25: 71.33333333 | M25: 65 | N25: 71.66666667 | P25: Sander Kell | Q25: =AVERAGEIFS(Tulemus,Nimi,$P25,Test,Q$6,Jnr,"<=3") -> 59.33333333 | R25: =AVERAGEIFS(Tulemus,Nimi,$P25,Test,R$6,Jnr,"<=3") -> 43.66666667 | S25: =AVERAGEIFS(Tulemus,Nimi,$P25,Test,S$6,Jnr,"<=3") -> 69.33333333 | T25: =AVERAGEIFS(Tulemus,Nimi,$P25,Test,T$6,Jnr,"<=3") -> 42.33333333 | U25: =INDEX(Rühm,MATCH(P25,[0]!Nimi,0)) -> R2 | X25: Karin Saar | Y25: 95 | Z25: 80 | AA25: 96 | AB25: 98 | AC25: 98 | AE25: Kaspar Raude | AF25: =_xlfn.MAXIFS(Tulemus,Nimi,$AE25,Test,AF$6) -> 95 | AG25: =_xlfn.MAXIFS(Tulemus,Nimi,$AE25,Test,AG$6) -> 94 | AH25: =_xlfn.MAXIFS(Tulemus,Nimi,$AE25,Test,AH$6) -> 91 | AI25: =_xlfn.MAXIFS(Tulemus,Nimi,$AE25,Test,AI$6) -> 89
A26: Test01 | B26: Getlin Allas | C26: 2019-11-11T21:10:26.773 | D26: 41 | E26: =COUNTIFS(Test,A26,Nimi,B26,Aeg,">="&C26) -> 8 | I26: Kaspar Raude | J26: 47 | K26: 79.33333333 | L26: 70 | M26: 63 | N26: 64.83333333 | P26: Emili Loorits | Q26: =AVERAGEIFS(Tulemus,Nimi,$P26,Test,Q$6,Jnr,"<=3") -> 56.33333333 | R26: =AVERAGEIFS(Tulemus,Nimi,$P26,Test,R$6,Jnr,"<=3") -> 74.66666667 | S26: =AVERAGEIFS(Tulemus,Nimi,$P26,Test,S$6,Jnr,"<=3") -> 31.66666667 | T26: =AVERAGEIFS(Tulemus,Nimi,$P26,Test,T$6,Jnr,"<=3") -> 44 | U26: =INDEX(Rühm,MATCH(P26,[0]!Nimi,0)) -> R1 | X26: Kaspar Raude | Y26: 95 | Z26: 94 | AA26: 91 | AB26: 89 | AC26: 95 | AE26: Katrin Laurits | AF26: =_xlfn.MAXIFS(Tulemus,Nimi,$AE26,Test,AF$6) -> 98 | AG26: =_xlfn.MAXIFS(Tulemus,Nimi,$AE26,Test,AG$6) -> 84 | AH26: =_xlfn.MAXIFS(Tulemus,Nimi,$AE26,Test,AH$6) -> 99 | AI26: =_xlfn.MAXIFS(Tulemus,Nimi,$AE26,Test,AI$6) -> 97
A27: Test01 | B27: Karin Saar | C27: 2019-11-24T08:00:23.699 | D27: 88 | E27: =COUNTIFS(Test,A27,Nimi,B27,Aeg,">="&C27) -> 2 | I27: Katrin Laurits | J27: 46.33333333 | K27: 39 | L27: 78 | M27: 64 | N27: 56.83333333 | P27: Jana Kiisk | Q27: =AVERAGEIFS(Tulemus,Nimi,$P27,Test,Q$6,Jnr,"<=3") -> 54 | R27: =AVERAGEIFS(Tulemus,Nimi,$P27,Test,R$6,Jnr,"<=3") -> 63 | S27: =AVERAGEIFS(Tulemus,Nimi,$P27,Test,S$6,Jnr,"<=3") -> 64.66666667 | T27: =AVERAGEIFS(Tulemus,Nimi,$P27,Test,T$6,Jnr,"<=3") -> 91 | U27: =INDEX(Rühm,MATCH(P27,[0]!Nimi,0)) -> R3 | X27: Katrin Laurits | Y27: 98 | Z27: 84 | AA27: 99 | AB27: 97 | AC27: 99 | AE27: Kertu Heinsoo | AF27: =_xlfn.MAXIFS(Tulemus,Nimi,$AE27,Test,AF$6) -> 90 | AG27: =_xlfn.MAXIFS(Tulemus,Nimi,$AE27,Test,AG$6) -> 82 | AH27: =_xlfn.MAXIFS(Tulemus,Nimi,$AE27,Test,AH$6) -> 95 | AI27: =_xlfn.MAXIFS(Tulemus,Nimi,$AE27,Test,AI$6) -> 100
A28: Test01 | B28: Egert Vint | C28: 2019-11-30T14:29:20.273 | D28: 29 | E28: =COUNTIFS(Test,A28,Nimi,B28,Aeg,">="&C28) -> 1 | I28: Kertu Heinsoo | J28: 61.66666667 | K28: 55.66666667 | L28: 44 | M28: 54 | N28: 53.83333333 | P28: Diana Taal | Q28: =AVERAGEIFS(Tulemus,Nimi,$P28,Test,Q$6,Jnr,"<=3") -> 53 | R28: =AVERAGEIFS(Tulemus,Nimi,$P28,Test,R$6,Jnr,"<=3") -> 79.33333333 | S28: =AVERAGEIFS(Tulemus,Nimi,$P28,Test,S$6,Jnr,"<=3") -> 62.66666667 | T28: =AVERAGEIFS(Tulemus,Nimi,$P28,Test,T$6,Jnr,"<=3") -> 78 | U28: =INDEX(Rühm,MATCH(P28,[0]!Nimi,0)) -> R2 | X28: Kertu Heinsoo | Y28: 90 | Z28: 82 | AA28: 95 | AB28: 100 | AC28: 100 | AE28: Kristina Merila | AF28: =_xlfn.MAXIFS(Tulemus,Nimi,$AE28,Test,AF$6) -> 72 | AG28: =_xlfn.MAXIFS(Tulemus,Nimi,$AE28,Test,AG$6) -> 99 | AH28: =_xlfn.MAXIFS(Tulemus,Nimi,$AE28,Test,AH$6) -> 97 | AI28: =_xlfn.MAXIFS(Tulemus,Nimi,$AE28,Test,AI$6) -> 94
A29: Test04 | B29: Hanna Laid | C29: 2019-11-16T11:05:59.488 | D29: 36 | E29: =COUNTIFS(Test,A29,Nimi,B29,Aeg,">="&C29) -> 6 | I29: Kristina Merila | J29: 45 | K29: 57.33333333 | L29: 72.33333333 | M29: 39 | N29: 53.41666667 | P29: Lauri Vahtra | Q29: =AVERAGEIFS(Tulemus,Nimi,$P29,Test,Q$6,Jnr,"<=3") -> 52.66666667 | R29: =AVERAGEIFS(Tulemus,Nimi,$P29,Test,R$6,Jnr,"<=3") -> 67.66666667 | S29: =AVERAGEIFS(Tulemus,Nimi,$P29,Test,S$6,Jnr,"<=3") -> 65.33333333 | T29: =AVERAGEIFS(Tulemus,Nimi,$P29,Test,T$6,Jnr,"<=3") -> 50 | U29: =INDEX(Rühm,MATCH(P29,[0]!Nimi,0)) -> R3 | X29: Kristina Merila | Y29: 72 | Z29: 99 | AA29: 97 | AB29: 94 | AC29: 99 | AE29: Lauri Vahtra | AF29: =_xlfn.MAXIFS(Tulemus,Nimi,$AE29,Test,AF$6) -> 98 | AG29: =_xlfn.MAXIFS(Tulemus,Nimi,$AE29,Test,AG$6) -> 93 | AH29: =_xlfn.MAXIFS(Tulemus,Nimi,$AE29,Test,AH$6) -> 99 | AI29: =_xlfn.MAXIFS(Tulemus,Nimi,$AE29,Test,AI$6) -> 97
A30: Test02 | B30: Maarja Pihlak | C30: 2019-11-03T11:24:19.446 | D30: 81 | E30: =COUNTIFS(Test,A30,Nimi,B30,Aeg,">="&C30) -> 10 | I30: Lauri Vahtra | J30: 52.66666667 | K30: 67.66666667 | L30: 65.33333333 | M30: 50 | N30: 58.91666667 | P30: Paul Hein | Q30: =AVERAGEIFS(Tulemus,Nimi,$P30,Test,Q$6,Jnr,"<=3") -> 52.33333333 | R30: =AVERAGEIFS(Tulemus,Nimi,$P30,Test,R$6,Jnr,"<=3") -> 65 | S30: =AVERAGEIFS(Tulemus,Nimi,$P30,Test,S$6,Jnr,"<=3") -> 56.66666667 | T30: =AVERAGEIFS(Tulemus,Nimi,$P30,Test,T$6,Jnr,"<=3") -> 49.66666667 | U30: =INDEX(Rühm,MATCH(P30,[0]!Nimi,0)) -> R1 | X30: Lauri Vahtra | Y30: 98 | Z30: 93 | AA30: 99 | AB30: 97 | AC30: 99 | AE30: Maarja Pihlak | AF30: =_xlfn.MAXIFS(Tulemus,Nimi,$AE30,Test,AF$6) -> 99 | AG30: =_xlfn.MAXIFS(Tulemus,Nimi,$AE30,Test,AG$6) -> 97 | AH30: =_xlfn.MAXIFS(Tulemus,Nimi,$AE30,Test,AH$6) -> 87 | AI30: =_xlfn.MAXIFS(Tulemus,Nimi,$AE30,Test,AI$6) -> 91
A31: Test02 | B31: Alari Suur | C31: 2019-11-14T12:26:57.555 | D31: 41 | E31: =COUNTIFS(Test,A31,Nimi,B31,Aeg,">="&C31) -> 5 | I31: Maarja Pihlak | J31: 92 | K31: 69 | L31: 79.66666667 | M31: 62.66666667 | N31: 75.83333333 | P31: Anna Koel | Q31: =AVERAGEIFS(Tulemus,Nimi,$P31,Test,Q$6,Jnr,"<=3") -> 51.33333333 | R31: =AVERAGEIFS(Tulemus,Nimi,$P31,Test,R$6,Jnr,"<=3") -> 50 | S31: =AVERAGEIFS(Tulemus,Nimi,$P31,Test,S$6,Jnr,"<=3") -> 48.33333333 | T31: =AVERAGEIFS(Tulemus,Nimi,$P31,Test,T$6,Jnr,"<=3") -> 59.66666667 | U31: =INDEX(Rühm,MATCH(P31,[0]!Nimi,0)) -> R1 | X31: Maarja Pihlak | Y31: 99 | Z31: 97 | AA31: 87 | AB31: 91 | AC31: 99 | AE31: Markus Niidas | AF31: =_xlfn.MAXIFS(Tulemus,Nimi,$AE31,Test,AF$6) -> 51 | AG31: =_xlfn.MAXIFS(Tulemus,Nimi,$AE31,Test,AG$6) -> 89 | AH31: =_xlfn.MAXIFS(Tulemus,Nimi,$AE31,Test,AH$6) -> 79 | AI31: =_xlfn.MAXIFS(Tulemus,Nimi,$AE31,Test,AI$6) -> 92
A32: Test01 | B32: Anette Lepp | C32: 2019-11-10T23:07:57.484 | D32: 43 | E32: =COUNTIFS(Test,A32,Nimi,B32,Aeg,">="&C32) -> 5 | I32: Markus Niidas | J32: 39.66666667 | K32: 77.66666667 | L32: 57 | M32: 67.66666667 | N32: 60.5 | P32: Mihkel Kulp | Q32: =AVERAGEIFS(Tulemus,Nimi,$P32,Test,Q$6,Jnr,"<=3") -> 48.33333333 | R32: =AVERAGEIFS(Tulemus,Nimi,$P32,Test,R$6,Jnr,"<=3") -> 75.66666667 | S32: =AVERAGEIFS(Tulemus,Nimi,$P32,Test,S$6,Jnr,"<=3") -> 87 | T32: =AVERAGEIFS(Tulemus,Nimi,$P32,Test,T$6,Jnr,"<=3") -> 83 | U32: =INDEX(Rühm,MATCH(P32,[0]!Nimi,0)) -> R1 | X32: Markus Niidas | Y32: 51 | Z32: 89 | AA32: 79 | AB32: 92 | AC32: 92 | AE32: Martin Aavik | AF32: =_xlfn.MAXIFS(Tulemus,Nimi,$AE32,Test,AF$6) -> 91 | AG32: =_xlfn.MAXIFS(Tulemus,Nimi,$AE32,Test,AG$6) -> 89 | AH32: =_xlfn.MAXIFS(Tulemus,Nimi,$AE32,Test,AH$6) -> 98 | AI32: =_xlfn.MAXIFS(Tulemus,Nimi,$AE32,Test,AI$6) -> 99
A33: Test01 | B33: Carmen Sõrmus | C33: 2019-11-17T08:44:30.313 | D33: 32 | E33: =COUNTIFS(Test,A33,Nimi,B33,Aeg,">="&C33) -> 3 | I33: Martin Aavik | J33: 41.33333333 | K33: 46.66666667 | L33: 59.33333333 | M33: 76.66666667 | N33: 56 | P33: Kaspar Raude | Q33: =AVERAGEIFS(Tulemus,Nimi,$P33,Test,Q$6,Jnr,"<=3") -> 47 | R33: =AVERAGEIFS(Tulemus,Nimi,$P33,Test,R$6,Jnr,"<=3") -> 79.33333333 | S33: =AVERAGEIFS(Tulemus,Nimi,$P33,Test,S$6,Jnr,"<=3") -> 70 | T33: =AVERAGEIFS(Tulemus,Nimi,$P33,Test,T$6,Jnr,"<=3") -> 63 | U33: =INDEX(Rühm,MATCH(P33,[0]!Nimi,0)) -> R1 | X33: Martin Aavik | Y33: 91 | Z33: 89 | AA33: 98 | AB33: 99 | AC33: 99 | AE33: Mihkel Kulp | AF33: =_xlfn.MAXIFS(Tulemus,Nimi,$AE33,Test,AF$6) -> 88 | AG33: =_xlfn.MAXIFS(Tulemus,Nimi,$AE33,Test,AG$6) -> 92 | AH33: =_xlfn.MAXIFS(Tulemus,Nimi,$AE33,Test,AH$6) -> 94 | AI33: =_xlfn.MAXIFS(Tulemus,Nimi,$AE33,Test,AI$6) -> 95
A34: Test04 | B34: Rasmus Kroon | C34: 2019-11-06T09:20:30.688 | D34: 95 | E34: =COUNTIFS(Test,A34,Nimi,B34,Aeg,">="&C34) -> 3 | I34: Mihkel Kulp | J34: 48.33333333 | K34: 75.66666667 | L34: 87 | M34: 83 | N34: 73.5 | P34: Viktoria Lumi | Q34: =AVERAGEIFS(Tulemus,Nimi,$P34,Test,Q$6,Jnr,"<=3") -> 46.66666667 | R34: =AVERAGEIFS(Tulemus,Nimi,$P34,Test,R$6,Jnr,"<=3") -> 63.33333333 | S34: =AVERAGEIFS(Tulemus,Nimi,$P34,Test,S$6,Jnr,"<=3") -> 80 | T34: =AVERAGEIFS(Tulemus,Nimi,$P34,Test,T$6,Jnr,"<=3") -> 62.33333333 | U34: =INDEX(Rühm,MATCH(P34,[0]!Nimi,0)) -> R3 | X34: Mihkel Kulp | Y34: 88 | Z34: 92 | AA34: 94 | AB34: 95 | AC34: 95 | AE34: Paul Hein | AF34: =_xlfn.MAXIFS(Tulemus,Nimi,$AE34,Test,AF$6) -> 97 | AG34: =_xlfn.MAXIFS(Tulemus,Nimi,$AE34,Test,AG$6) -> 88 | AH34: =_xlfn.MAXIFS(Tulemus,Nimi,$AE34,Test,AH$6) -> 97 | AI34: =_xlfn.MAXIFS(Tulemus,Nimi,$AE34,Test,AI$6) -> 83
A35: Test01 | B35: Viktoria Lumi | C35: 2019-11-18T17:25:51.432 | D35: 93 | E35: =COUNTIFS(Test,A35,Nimi,B35,Aeg,">="&C35) -> 3 | I35: Paul Hein | J35: 52.33333333 | K35: 65 | L35: 56.66666667 | M35: 49.66666667 | N35: 55.91666667 | P35: Katrin Laurits | Q35: =AVERAGEIFS(Tulemus,Nimi,$P35,Test,Q$6,Jnr,"<=3") -> 46.33333333 | R35: =AVERAGEIFS(Tulemus,Nimi,$P35,Test,R$6,Jnr,"<=3") -> 39 | S35: =AVERAGEIFS(Tulemus,Nimi,$P35,Test,S$6,Jnr,"<=3") -> 78 | T35: =AVERAGEIFS(Tulemus,Nimi,$P35,Test,T$6,Jnr,"<=3") -> 64 | U35: =INDEX(Rühm,MATCH(P35,[0]!Nimi,0)) -> R2 | X35: Paul Hein | Y35: 97 | Z35: 88 | AA35: 97 | AB35: 83 | AC35: 97 | AE35: Rasmus Kroon | AF35: =_xlfn.MAXIFS(Tulemus,Nimi,$AE35,Test,AF$6) -> 83 | AG35: =_xlfn.MAXIFS(Tulemus,Nimi,$AE35,Test,AG$6) -> 95 | AH35: =_xlfn.MAXIFS(Tulemus,Nimi,$AE35,Test,AH$6) -> 73 | AI35: =_xlfn.MAXIFS(Tulemus,Nimi,$AE35,Test,AI$6) -> 95
A36: Test03 | B36: Markus Niidas | C36: 2019-11-03T13:01:48.405 | D36: 66 | E36: =COUNTIFS(Test,A36,Nimi,B36,Aeg,">="&C36) -> 4 | I36: Rasmus Kroon | J36: 66 | K36: 61.33333333 | L36: 35.33333333 | M36: 84 | N36: 61.66666667 | P36: Kristina Merila | Q36: =AVERAGEIFS(Tulemus,Nimi,$P36,Test,Q$6,Jnr,"<=3") -> 45 | R36: =AVERAGEIFS(Tulemus,Nimi,$P36,Test,R$6,Jnr,"<=3") -> 57.33333333 | S36: =AVERAGEIFS(Tulemus,Nimi,$P36,Test,S$6,Jnr,"<=3") -> 72.33333333 | T36: =AVERAGEIFS(Tulemus,Nimi,$P36,Test,T$6,Jnr,"<=3") -> 39 | U36: =INDEX(Rühm,MATCH(P36,[0]!Nimi,0)) -> R3 | X36: Rasmus Kroon | Y36: 83 | Z36: 95 | AA36: 73 | AB36: 95 | AC36: 95 | AE36: Reimo Kala | AF36: =_xlfn.MAXIFS(Tulemus,Nimi,$AE36,Test,AF$6) -> 95 | AG36: =_xlfn.MAXIFS(Tulemus,Nimi,$AE36,Test,AG$6) -> 90 | AH36: =_xlfn.MAXIFS(Tulemus,Nimi,$AE36,Test,AH$6) -> 98 | AI36: =_xlfn.MAXIFS(Tulemus,Nimi,$AE36,Test,AI$6) -> 92
A37: Test01 | B37: Urmas Lõhmus | C37: 2019-11-23T17:32:21.250 | D37: 69 | E37: =COUNTIFS(Test,A37,Nimi,B37,Aeg,">="&C37) -> 1 | I37: Reimo Kala | J37: 75 | K37: 79.66666667 | L37: 51.66666667 | M37: 76.33333333 | N37: 70.66666667 | P37: Egert Vint | Q37: =AVERAGEIFS(Tulemus,Nimi,$P37,Test,Q$6,Jnr,"<=3") -> 44 | R37: =AVERAGEIFS(Tulemus,Nimi,$P37,Test,R$6,Jnr,"<=3") -> 41.66666667 | S37: =AVERAGEIFS(Tulemus,Nimi,$P37,Test,S$6,Jnr,"<=3") -> 64 | T37: =AVERAGEIFS(Tulemus,Nimi,$P37,Test,T$6,Jnr,"<=3") -> 38.33333333 | U37: =INDEX(Rühm,MATCH(P37,[0]!Nimi,0)) -> R3 | X37: Reimo Kala | Y37: 95 | Z37: 90 | AA37: 98 | AB37: 92 | AC37: 98 | AE37: Robert Lentso | AF37: =_xlfn.MAXIFS(Tulemus,Nimi,$AE37,Test,AF$6) -> 76 | AG37: =_xlfn.MAXIFS(Tulemus,Nimi,$AE37,Test,AG$6) -> 99 | AH37: =_xlfn.MAXIFS(Tulemus,Nimi,$AE37,Test,AH$6) -> 85 | AI37: =_xlfn.MAXIFS(Tulemus,Nimi,$AE37,Test,AI$6) -> 97
A38: Test02 | B38: Lauri Vahtra | C38: 2019-11-08T19:49:14.237 | D38: 47 | E38: =COUNTIFS(Test,A38,Nimi,B38,Aeg,">="&C38) -> 9 | I38: Robert Lentso | J38: 35.66666667 | K38: 63.33333333 | L38: 49 | M38: 69 | N38: 54.25 | P38: Martin Aavik | Q38: =AVERAGEIFS(Tulemus,Nimi,$P38,Test,Q$6,Jnr,"<=3") -> 41.33333333 | R38: =AVERAGEIFS(Tulemus,Nimi,$P38,Test,R$6,Jnr,"<=3") -> 46.66666667 | S38: =AVERAGEIFS(Tulemus,Nimi,$P38,Test,S$6,Jnr,"<=3") -> 59.33333333 | T38: =AVERAGEIFS(Tulemus,Nimi,$P38,Test,T$6,Jnr,"<=3") -> 76.66666667 | U38: =INDEX(Rühm,MATCH(P38,[0]!Nimi,0)) -> R1 | X38: Robert Lentso | Y38: 76 | Z38: 99 | AA38: 85 | AB38: 97 | AC38: 99 | AE38: Sander Kell | AF38: =_xlfn.MAXIFS(Tulemus,Nimi,$AE38,Test,AF$6) -> 94 | AG38: =_xlfn.MAXIFS(Tulemus,Nimi,$AE38,Test,AG$6) -> 86 | AH38: =_xlfn.MAXIFS(Tulemus,Nimi,$AE38,Test,AH$6) -> 93 | AI38: =_xlfn.MAXIFS(Tulemus,Nimi,$AE38,Test,AI$6) -> 93
A39: Test04 | B39: Kristina Merila | C39: 2019-11-27T19:38:03.161 | D39: 27 | E39: =COUNTIFS(Test,A39,Nimi,B39,Aeg,">="&C39) -> 3 | I39: Sander Kell | J39: 59.33333333 | K39: 43.66666667 | L39: 69.33333333 | M39: 42.33333333 | N39: 53.66666667 | P39: Markus Niidas | Q39: =AVERAGEIFS(Tulemus,Nimi,$P39,Test,Q$6,Jnr,"<=3") -> 39.66666667 | R39: =AVERAGEIFS(Tulemus,Nimi,$P39,Test,R$6,Jnr,"<=3") -> 77.66666667 | S39: =AVERAGEIFS(Tulemus,Nimi,$P39,Test,S$6,Jnr,"<=3") -> 57 | T39: =AVERAGEIFS(Tulemus,Nimi,$P39,Test,T$6,Jnr,"<=3") -> 67.66666667 | U39: =INDEX(Rühm,MATCH(P39,[0]!Nimi,0)) -> R1 | X39: Sander Kell | Y39: 94 | Z39: 86 | AA39: 93 | AB39: 93 | AC39: 94 | AE39: Tarvo Järv | AF39: =_xlfn.MAXIFS(Tulemus,Nimi,$AE39,Test,AF$6) -> 87 | AG39: =_xlfn.MAXIFS(Tulemus,Nimi,$AE39,Test,AG$6) -> 97 | AH39: =_xlfn.MAXIFS(Tulemus,Nimi,$AE39,Test,AH$6) -> 97 | AI39: =_xlfn.MAXIFS(Tulemus,Nimi,$AE39,Test,AI$6) -> 99
A40: Test03 | B40: Robert Lentso | C40: 2019-11-16T21:01:02.483 | D40: 85 | E40: =COUNTIFS(Test,A40,Nimi,B40,Aeg,">="&C40) -> 9 | I40: Tarvo Järv | J40: 61.66666667 | K40: 49.33333333 | L40: 53.33333333 | M40: 91 | N40: 63.83333333 | P40: Robert Lentso | Q40: =AVERAGEIFS(Tulemus,Nimi,$P40,Test,Q$6,Jnr,"<=3") -> 35.66666667 | R40: =AVERAGEIFS(Tulemus,Nimi,$P40,Test,R$6,Jnr,"<=3") -> 63.33333333 | S40: =AVERAGEIFS(Tulemus,Nimi,$P40,Test,S$6,Jnr,"<=3") -> 49 | T40: =AVERAGEIFS(Tulemus,Nimi,$P40,Test,T$6,Jnr,"<=3") -> 69 | U40: =INDEX(Rühm,MATCH(P40,[0]!Nimi,0)) -> R1 | X40: Tarvo Järv | Y40: 87 | Z40: 97 | AA40: 97 | AB40: 99 | AC40: 99 | AE40: Urmas Lõhmus | AF40: =_xlfn.MAXIFS(Tulemus,Nimi,$AE40,Test,AF$6) -> 73 | AG40: =_xlfn.MAXIFS(Tulemus,Nimi,$AE40,Test,AG$6) -> 89 | AH40: =_xlfn.MAXIFS(Tulemus,Nimi,$AE40,Test,AH$6) -> 99 | AI40: =_xlfn.MAXIFS(Tulemus,Nimi,$AE40,Test,AI$6) -> 96
A41: Test01 | B41: Anette Lepp | C41: 2019-11-10T12:18:50.568 | D41: 66 | E41: =COUNTIFS(Test,A41,Nimi,B41,Aeg,">="&C41) -> 6 | I41: Urmas Lõhmus | J41: 60.66666667 | K41: 45 | L41: 57.33333333 | M41: 77 | N41: 60 | P41: Carmen Sõrmus | Q41: =AVERAGEIFS(Tulemus,Nimi,$P41,Test,Q$6,Jnr,"<=3") -> 31.33333333 | R41: =AVERAGEIFS(Tulemus,Nimi,$P41,Test,R$6,Jnr,"<=3") -> 57.33333333 | S41: =AVERAGEIFS(Tulemus,Nimi,$P41,Test,S$6,Jnr,"<=3") -> 45.66666667 | T41: =AVERAGEIFS(Tulemus,Nimi,$P41,Test,T$6,Jnr,"<=3") -> 73.33333333 | U41: =INDEX(Rühm,MATCH(P41,[0]!Nimi,0)) -> R2 | X41: Urmas Lõhmus | Y41: 73 | Z41: 89 | AA41: 99 | AB41: 96 | AC41: 99 | AE41: Viktoria Lumi | AF41: =_xlfn.MAXIFS(Tulemus,Nimi,$AE41,Test,AF$6) -> 93 | AG41: =_xlfn.MAXIFS(Tulemus,Nimi,$AE41,Test,AG$6) -> 98 | AH41: =_xlfn.MAXIFS(Tulemus,Nimi,$AE41,Test,AH$6) -> 100 | AI41: =_xlfn.MAXIFS(Tulemus,Nimi,$AE41,Test,AI$6) -> 98
A42: Test04 | B42: Kertu Heinsoo | C42: 2019-11-01T17:20:52.084 | D42: 25 | E42: =COUNTIFS(Test,A42,Nimi,B42,Aeg,">="&C42) -> 9 | I42: Viktoria Lumi | J42: 46.66666667 | K42: 63.33333333 | L42: 80 | M42: 62.33333333 | N42: 63.08333333 | X42: Viktoria Lumi | Y42: 93 | Z42: 98 | AA42: 100 | AB42: 98 | AC42: 100
A43: Test02 | B43: Markus Niidas | C43: 2019-11-07T13:03:59.704 | D43: 26 | E43: =COUNTIFS(Test,A43,Nimi,B43,Aeg,">="&C43) -> 7 | I43: Grand Total | J43: 61.22857143 | K43: 60.82857143 | L43: 61.38095238 | M43: 62.04854369 | N43: 61.36842105 | X43: Grand Total | Y43: 100 | Z43: 100 | AA43: 100 | AB43: 100 | AC43: 100
A44: Test01 | B44: Kaspar Raude | C44: 2019-11-10T09:32:52.618 | D44: 70 | E44: =COUNTIFS(Test,A44,Nimi,B44,Aeg,">="&C44) -> 5
A45: Test04 | B45: Hanna Laid | C45: 2019-11-19T15:29:08.312 | D45: 52 | E45: =COUNTIFS(Test,A45,Nimi,B45,Aeg,">="&C45) -> 4
A46: Test04 | B46: Viktoria Lumi | C46: 2019-11-26T17:49:25.919 | D46: 98 | E46: =COUNTIFS(Test,A46,Nimi,B46,Aeg,">="&C46) -> 2 | I46: 3. Leida igast rühmast esimeses testis kolme viimase katse keskmisena parima tulemuse saanud tudeng.
A47: Test02 | B47: Tarvo Järv | C47: 2019-11-15T17:04:37.910 | D47: 45 | E47: =COUNTIFS(Test,A47,Nimi,B47,Aeg,">="&C47) -> 8
A48: Test02 | B48: Tarvo Järv | C48: 2019-11-25T16:48:34.680 | D48: 48 | E48: =COUNTIFS(Test,A48,Nimi,B48,Aeg,">="&C48) -> 4 | I48: Rühm | J48: Parim keskmine | K48: Tudeng (index+match)
A49: Test04 | B49: Kaspar Raude | C49: 2019-11-03T14:36:34.996 | D49: 65 | E49: =COUNTIFS(Test,A49,Nimi,B49,Aeg,">="&C49) -> 8 | I49: R1 | J49: =_xlfn.MAXIFS(Test01,Rühm_2,I49) -> 83
A50: Test01 | B50: Armin Kaasik | C50: 2019-11-06T12:10:20.256 | D50: 95 | E50: =COUNTIFS(Test,A50,Nimi,B50,Aeg,">="&C50) -> 5 | I50: R2 | J50: =_xlfn.MAXIFS(Test01,Rühm_2,I50) -> 85.66666667
A51: Test04 | B51: Hans Kukk | C51: 2019-11-26T21:49:28.605 | D51: 73 | E51: =COUNTIFS(Test,A51,Nimi,B51,Aeg,">="&C51) -> 4 | I51: R3 | J51: =_xlfn.MAXIFS(Test01,Rühm_2,I51) -> 92
A52: Test01 | B52: Sander Kell | C52: 2019-11-04T22:27:01.154 | D52: 30 | E52: =COUNTIFS(Test,A52,Nimi,B52,Aeg,">="&C52) -> 10
A53: Test02 | B53: Tarvo Järv | C53: 2019-11-08T19:47:42.241 | D53: 64 | E53: =COUNTIFS(Test,A53,Nimi,B53,Aeg,">="&C53) -> 10
A54: Test03 | B54: Katrin Laurits | C54: 2019-11-15T13:04:57.541 | D54: 41 | E54: =COUNTIFS(Test,A54,Nimi,B54,Aeg,">="&C54) -> 5
A55: Test01 | B55: Diana Taal | C55: 2019-11-01T12:10:37.538 | D55: 86 | E55: =COUNTIFS(Test,A55,Nimi,B55,Aeg,">="&C55) -> 8
A56: Test04 | B56: Brita Kaljula | C56: 2019-11-08T08:30:49.316 | D56: 30 | E56: =COUNTIFS(Test,A56,Nimi,B56,Aeg,">="&C56) -> 8
A57: Test02 | B57: Emili Loorits | C57: 2019-11-19T19:00:03.572 | D57: 92 | E57: =COUNTIFS(Test,A57,Nimi,B57,Aeg,">="&C57) -> 4
A58: Test04 | B58: Viktoria Lumi | C58: 2019-11-04T17:02:17.438 | D58: 79 | E58: =COUNTIFS(Test,A58,Nimi,B58,Aeg,">="&C58) -> 7
A59: Test01 | B59: Alari Suur | C59: 2019-11-20T19:46:51.184 | D59: 43 | E59: =COUNTIFS(Test,A59,Nimi,B59,Aeg,">="&C59) -> 4
A60: Test04 | B60: Jaagup Kivi | C60: 2019-11-14T11:07:38.995 | D60: 72 | E60: =COUNTIFS(Test,A60,Nimi,B60,Aeg,">="&C60) -> 7
A61: Test03 | B61: Robert Lentso | C61: 2019-11-29T23:36:45.387 | D61: 24 | E61: =COUNTIFS(Test,A61,Nimi,B61,Aeg,">="&C61) -> 3
A62: Test01 | B62: Jaagup Kivi | C62: 2019-11-14T13:05:29.465 | D62: 29 | E62: =COUNTIFS(Test,A62,Nimi,B62,Aeg,">="&C62) -> 4
A63: Test02 | B63: Anette Lepp | C63: 2019-11-02T23:02:55.140 | D63: 70 | E63: =COUNTIFS(Test,A63,Nimi,B63,Aeg,">="&C63) -> 6
A64: Test01 | B64: Tarvo Järv | C64: 2019-11-06T15:43:19.934 | D64: 87 | E64: =COUNTIFS(Test,A64,Nimi,B64,Aeg,">="&C64) -> 4
A65: Test04 | B65: Getlin Allas | C65: 2019-11-11T10:28:27.646 | D65: 28 | E65: =COUNTIFS(Test,A65,Nimi,B65,Aeg,">="&C65) -> 3
A66: Test03 | B66: Anette Lepp | C66: 2019-11-28T18:36:14.503 | D66: 97 | E66: =COUNTIFS(Test,A66,Nimi,B66,Aeg,">="&C66) -> 3
A67: Test02 | B67: Rasmus Kroon | C67: 2019-11-11T11:13:28.317 | D67: 45 | E67: =COUNTIFS(Test,A67,Nimi,B67,Aeg,">="&C67) -> 6
A68: Test03 | B68: Maarja Pihlak | C68: 2019-11-22T17:55:23.982 | D68: 87 | E68: =COUNTIFS(Test,A68,Nimi,B68,Aeg,">="&C68) -> 3
A69: Test01 | B69: Kristina Merila | C69: 2019-11-14T14:52:28.851 | D69: 72 | E69: =COUNTIFS(Test,A69,Nimi,B69,Aeg,">="&C69) -> 1
A70: Test04 | B70: Lauri Vahtra | C70: 2019-11-24T23:10:52.883 | D70: 33 | E70: =COUNTIFS(Test,A70,Nimi,B70,Aeg,">="&C70) -> 2
A71: Test04 | B71: Brita Kaljula | C71: 2019-11-25T10:04:14.109 | D71: 60 | E71: =COUNTIFS(Test,A71,Nimi,B71,Aeg,">="&C71) -> 2
A72: Test04 | B72: Robert Lentso | C72: 2019-11-10T15:07:43.267 | D72: 52 | E72: =COUNTIFS(Test,A72,Nimi,B72,Aeg,">="&C72) -> 6
A73: Test02 | B73: Joonas Haljas | C73: 2019-11-24T11:24:39.626 | D73: 55 | E73: =COUNTIFS(Test,A73,Nimi,B73,Aeg,">="&C73) -> 4
A74: Test04 | B74: Mihkel Kulp | C74: 2019-11-26T15:44:50.085 | D74: 88 | E74: =COUNTIFS(Test,A74,Nimi,B74,Aeg,">="&C74) -> 1
A75: Test03 | B75: Viktoria Lumi | C75: 2019-11-22T21:30:12.893 | D75: 98 | E75: =COUNTIFS(Test,A75,Nimi,B75,Aeg,">="&C75) -> 4
A76: Test03 | B76: Tarvo Järv | C76: 2019-11-16T15:42:06.281 | D76: 24 | E76: =COUNTIFS(Test,A76,Nimi,B76,Aeg,">="&C76) -> 4
A77: Test04 | B77: Anette Lepp | C77: 2019-11-08T12:53:06.590 | D77: 74 | E77: =COUNTIFS(Test,A77,Nimi,B77,Aeg,">="&C77) -> 9
A78: Test01 | B78: Rasmus Kroon | C78: 2019-11-01T23:48:33.011 | D78: 83 | E78: =COUNTIFS(Test,A78,Nimi,B78,Aeg,">="&C78) -> 11
A79: Test01 | B79: Artur Piiri | C79: 2019-11-18T10:58:29.104 | D79: 98 | E79: =COUNTIFS(Test,A79,Nimi,B79,Aeg,">="&C79) -> 2
A80: Test02 | B80: Erik Pärn | C80: 2019-11-01T21:18:20.191 | D80: 71 | E80: =COUNTIFS(Test,A80,Nimi,B80,Aeg,">="&C80) -> 15
A81: Test01 | B81: Armin Kaasik | C81: 2019-11-22T22:30:37.591 | D81: 84 | E81: =COUNTIFS(Test,A81,Nimi,B81,Aeg,">="&C81) -> 3
A82: Test01 | B82: Jana Kiisk | C82: 2019-11-29T11:20:48.827 | D82: 53 | E82: =COUNTIFS(Test,A82,Nimi,B82,Aeg,">="&C82) -> 2
A83: Test02 | B83: Markus Niidas | C83: 2019-11-29T16:10:32.418 | D83: 87 | E83: =COUNTIFS(Test,A83,Nimi,B83,Aeg,">="&C83) -> 1
A84: Test03 | B84: Diana Taal | C84: 2019-11-24T14:27:31.071 | D84: 95 | E84: =COUNTIFS(Test,A84,Nimi,B84,Aeg,">="&C84) -> 3
A85: Test04 | B85: Hanna Laid | C85: 2019-11-15T17:54:59.868 | D85: 34 | E85: =COUNTIFS(Test,A85,Nimi,B85,Aeg,">="&C85) -> 8
A86: Test04 | B86: Paul Hein | C86: 2019-11-20T15:38:03.244 | D86: 44 | E86: =COUNTIFS(Test,A86,Nimi,B86,Aeg,">="&C86) -> 1
A87: Test03 | B87: Jaagup Kivi | C87: 2019-11-16T16:21:24.109 | D87: 27 | E87: =COUNTIFS(Test,A87,Nimi,B87,Aeg,">="&C87) -> 6
A88: Test02 | B88: Viktoria Lumi | C88: 2019-11-23T11:45:25.515 | D88: 89 | E88: =COUNTIFS(Test,A88,Nimi,B88,Aeg,">="&C88) -> 2
A89: Test02 | B89: Anna Koel | C89: 2019-11-05T13:18:36.109 | D89: 25 | E89: =COUNTIFS(Test,A89,Nimi,B89,Aeg,">="&C89) -> 5
A90: Test04 | B90: Hans Kukk | C90: 2019-11-26T18:55:40.466 | D90: 66 | E90: =COUNTIFS(Test,A90,Nimi,B90,Aeg,">="&C90) -> 5
A91: Test03 | B91: Reimo Kala | C91: 2019-11-19T14:51:21.555 | D91: 26 | E91: =COUNTIFS(Test,A91,Nimi,B91,Aeg,">="&C91) -> 2
A92: Test04 | B92: Alari Suur | C92: 2019-11-23T08:33:36.310 | D92: 65 | E92: =COUNTIFS(Test,A92,Nimi,B92,Aeg,">="&C92) -> 3
A93: Test02 | B93: Brita Kaljula | C93: 2019-11-11T12:18:53.300 | D93: 24 | E93: =COUNTIFS(Test,A93,Nimi,B93,Aeg,">="&C93) -> 5
A94: Test02 | B94: Egert Vint | C94: 2019-11-06T17:07:34.860 | D94: 37 | E94: =COUNTIFS(Test,A94,Nimi,B94,Aeg,">="&C94) -> 6
A95: Test02 | B95: Mihkel Kulp | C95: 2019-11-25T22:48:53.848 | D95: 43 | E95: =COUNTIFS(Test,A95,Nimi,B95,Aeg,">="&C95) -> 5
A96: Test02 | B96: Diana Taal | C96: 2019-11-25T18:09:02.690 | D96: 93 | E96: =COUNTIFS(Test,A96,Nimi,B96,Aeg,">="&C96) -> 2
A97: Test02 | B97: Getlin Allas | C97: 2019-11-28T10:20:51.957 | D97: 59 | E97: =COUNTIFS(Test,A97,Nimi,B97,Aeg,">="&C97) -> 1
A98: Test01 | B98: Tarvo Järv | C98: 2019-11-11T12:35:57.181 | D98: 66 | E98: =COUNTIFS(Test,A98,Nimi,B98,Aeg,">="&C98) -> 2
A99: Test01 | B99: Carmen Sõrmus | C99: 2019-11-09T23:11:27.574 | D99: 55 | E99: =COUNTIFS(Test,A99,Nimi,B99,Aeg,">="&C99) -> 6
A100: Test01 | B100: Kaspar Raude | C100: 2019-11-08T17:08:49.728 | D100: 61 | E100: =COUNTIFS(Test,A100,Nimi,B100,Aeg,">="&C100) -> 6
A101: Test04 | B101: Kaspar Raude | C101: 2019-11-05T23:39:20.081 | D101: 31 | E101: =COUNTIFS(Test,A101,Nimi,B101,Aeg,">="&C101) -> 6
A102: Test03 | B102: Martin Aavik | C102: 2019-11-02T18:30:33.260 | D102: 23 | E102: =COUNTIFS(Test,A102,Nimi,B102,Aeg,">="&C102) -> 15
A103: Test02 | B103: Mihkel Kulp | C103: 2019-11-28T21:32:53.818 | D103: 92 | E103: =COUNTIFS(Test,A103,Nimi,B103,Aeg,">="&C103) -> 2
A104: Test03 | B104: Tarvo Järv | C104: 2019-11-07T09:18:25.008 | D104: 97 | E104: =COUNTIFS(Test,A104,Nimi,B104,Aeg,">="&C104) -> 9
A105: Test02 | B105: Armin Kaasik | C105: 2019-11-14T20:43:09.474 | D105: 23 | E105: =COUNTIFS(Test,A105,Nimi,B105,Aeg,">="&C105) -> 6
A106: Test03 | B106: Urmas Lõhmus | C106: 2019-11-12T09:38:19.905 | D106: 24 | E106: =COUNTIFS(Test,A106,Nimi,B106,Aeg,">="&C106) -> 6
A107: Test04 | B107: Jaagup Kivi | C107: 2019-11-30T22:52:37.393 | D107: 82 | E107: =COUNTIFS(Test,A107,Nimi,B107,Aeg,">="&C107) -> 2
A108: Test01 | B108: Armin Kaasik | C108: 2019-11-27T21:55:55.696 | D108: 87 | E108: =COUNTIFS(Test,A108,Nimi,B108,Aeg,">="&C108) -> 1
A109: Test03 | B109: Brita Kaljula | C109: 2019-11-22T10:11:56.271 | D109: 92 | E109: =COUNTIFS(Test,A109,Nimi,B109,Aeg,">="&C109) -> 4
A110: Test03 | B110: Hans Kukk | C110: 2019-11-16T11:50:16.527 | D110: 71 | E110: =COUNTIFS(Test,A110,Nimi,B110,Aeg,">="&C110) -> 8
A111: Test03 | B111: Jana Kiisk | C111: 2019-11-04T12:24:03.817 | D111: 39 | E111: =COUNTIFS(Test,A111,Nimi,B111,Aeg,">="&C111) -> 7
A112: Test04 | B112: Martin Aavik | C112: 2019-11-20T10:51:47.910 | D112: 99 | E112: =COUNTIFS(Test,A112,Nimi,B112,Aeg,">="&C112) -> 3
A113: Test02 | B113: Katrin Laurits | C113: 2019-11-15T08:40:33.908 | D113: 84 | E113: =COUNTIFS(Test,A113,Nimi,B113,Aeg,">="&C113) -> 5
A114: Test02 | B114: Maarja Pihlak | C114: 2019-11-21T18:37:39.613 | D114: 55 | E114: =COUNTIFS(Test,A114,Nimi,B114,Aeg,">="&C114) -> 3
A115: Test04 | B115: Paul Hein | C115: 2019-11-17T12:43:23.509 | D115: 83 | E115: =COUNTIFS(Test,A115,Nimi,B115,Aeg,">="&C115) -> 2
A116: Test02 | B116: Maarja Pihlak | C116: 2019-11-22T20:37:05.053 | D116: 84 | E116: =COUNTIFS(Test,A116,Nimi,B116,Aeg,">="&C116) -> 2
A117: Test04 | B117: Viktoria Lumi | C117: 2019-11-24T21:35:52.299 | D117: 52 | E117: =COUNTIFS(Test,A117,Nimi,B117,Aeg,">="&C117) -> 4
A118: Test04 | B118: Alari Suur | C118: 2019-11-03T17:13:56.298 | D118: 66 | E118: =COUNTIFS(Test,A118,Nimi,B118,Aeg,">="&C118) -> 9
A119: Test02 | B119: Katrin Laurits | C119: 2019-11-07T23:11:38.610 | D119: 62 | E119: =COUNTIFS(Test,A119,Nimi,B119,Aeg,">="&C119) -> 6
A120: Test02 | B120: Paul Hein | C120: 2019-11-23T22:54:27.058 | D120: 49 | E120: =COUNTIFS(Test,A120,Nimi,B120,Aeg,">="&C120) -> 3
A121: Test02 | B121: Kristina Merila | C121: 2019-11-15T21:39:52.344 | D121: 52 | E121: =COUNTIFS(Test,A121,Nimi,B121,Aeg,">="&C121) -> 6
A122: Test03 | B122: Getlin Allas | C122: 2019-11-01T21:21:23.168 | D122: 79 | E122: =COUNTIFS(Test,A122,Nimi,B122,Aeg,">="&C122) -> 9
A123: Test04 | B123: Carmen Sõrmus | C123: 2019-11-04T12:56:59.157 | D123: 86 | E123: =COUNTIFS(Test,A123,Nimi,B123,Aeg,">="&C123) -> 3
A124: Test04 | B124: Kertu Heinsoo | C124: 2019-11-25T12:41:03.433 | D124: 25 | E124: =COUNTIFS(Test,A124,Nimi,B124,Aeg,">="&C124) -> 2
A125: Test04 | B125: Karin Saar | C125: 2019-11-04T10:04:34.492 | D125: 32 | E125: =COUNTIFS(Test,A125,Nimi,B125,Aeg,">="&C125) -> 9
A126: Test03 | B126: Kristina Merila | C126: 2019-11-01T16:42:02.460 | D126: 34 | E126: =COUNTIFS(Test,A126,Nimi,B126,Aeg,">="&C126) -> 9
A127: Test02 | B127: Emili Loorits | C127: 2019-11-11T17:46:54.434 | D127: 84 | E127: =COUNTIFS(Test,A127,Nimi,B127,Aeg,">="&C127) -> 8
A128: Test04 | B128: Tarvo Järv | C128: 2019-11-04T11:43:29.423 | D128: 85 | E128: =COUNTIFS(Test,A128,Nimi,B128,Aeg,">="&C128) -> 8
A129: Test04 | B129: Urmas Lõhmus | C129: 2019-11-25T23:16:05.398 | D129: 85 | E129: =COUNTIFS(Test,A129,Nimi,B129,Aeg,">="&C129) -> 1
A130: Test04 | B130: Joonas Haljas | C130: 2019-11-01T13:09:36.835 | D130: 28 | E130: =COUNTIFS(Test,A130,Nimi,B130,Aeg,">="&C130) -> 7
A131: Test04 | B131: Alari Suur | C131: 2019-11-18T18:09:08.869 | D131: 20 | E131: =COUNTIFS(Test,A131,Nimi,B131,Aeg,">="&C131) -> 7
A132: Test03 | B132: Getlin Allas | C132: 2019-11-07T10:16:15.309 | D132: 35 | E132: =COUNTIFS(Test,A132,Nimi,B132,Aeg,">="&C132) -> 6
A133: Test02 | B133: Anette Lepp | C133: 2019-11-17T15:22:08.392 | D133: 52 | E133: =COUNTIFS(Test,A133,Nimi,B133,Aeg,">="&C133) -> 3
A134: Test02 | B134: Kristina Merila | C134: 2019-11-15T17:59:01.733 | D134: 59 | E134: =COUNTIFS(Test,A134,Nimi,B134,Aeg,">="&C134) -> 7
A135: Test03 | B135: Getlin Allas | C135: 2019-11-14T08:50:00.581 | D135: 37 | E135: =COUNTIFS(Test,A135,Nimi,B135,Aeg,">="&C135) -> 5
A136: Test01 | B136: Sander Kell | C136: 2019-11-28T13:40:17.971 | D136: 52 | E136: =COUNTIFS(Test,A136,Nimi,B136,Aeg,">="&C136) -> 2
A137: Test02 | B137: Viktoria Lumi | C137: 2019-11-20T08:21:57.267 | D137: 73 | E137: =COUNTIFS(Test,A137,Nimi,B137,Aeg,">="&C137) -> 3
A138: Test04 | B138: Alari Suur | C138: 2019-11-19T23:03:32.204 | D138: 35 | E138: =COUNTIFS(Test,A138,Nimi,B138,Aeg,">="&C138) -> 6
A139: Test02 | B139: Markus Niidas | C139: 2019-11-18T10:56:39.202 | D139: 50 | E139: =COUNTIFS(Test,A139,Nimi,B139,Aeg,">="&C139) -> 5
A140: Test04 | B140: Diana Taal | C140: 2019-11-09T14:33:14.092 | D140: 85 | E140: =COUNTIFS(Test,A140,Nimi,B140,Aeg,">="&C140) -> 7
A141: Test02 | B141: Maarja Pihlak | C141: 2019-11-10T16:22:13.249 | D141: 31 | E141: =COUNTIFS(Test,A141,Nimi,B141,Aeg,">="&C141) -> 7
A142: Test04 | B142: Artur Piiri | C142: 2019-11-04T16:55:50.081 | D142: 22 | E142: =COUNTIFS(Test,A142,Nimi,B142,Aeg,">="&C142) -> 7
A143: Test02 | B143: Robert Lentso | C143: 2019-11-29T19:52:59.877 | D143: 85 | E143: =COUNTIFS(Test,A143,Nimi,B143,Aeg,">="&C143) -> 2
A144: Test03 | B144: Kertu Heinsoo | C144: 2019-11-07T22:05:38.694 | D144: 72 | E144: =COUNTIFS(Test,A144,Nimi,B144,Aeg,">="&C144) -> 13
A145: Test02 | B145: Sander Kell | C145: 2019-11-27T19:24:57.675 | D145: 23 | E145: =COUNTIFS(Test,A145,Nimi,B145,Aeg,">="&C145) -> 1
A146: Test03 | B146: Artur Piiri | C146: 2019-11-18T18:39:09.688 | D146: 26 | E146: =COUNTIFS(Test,A146,Nimi,B146,Aeg,">="&C146) -> 5
A147: Test01 | B147: Reimo Kala | C147: 2019-11-13T12:39:48.620 | D147: 91 | E147: =COUNTIFS(Test,A147,Nimi,B147,Aeg,">="&C147) -> 4
A148: Test02 | B148: Maarja Pihlak | C148: 2019-11-04T20:58:10.732 | D148: 71 | E148: =COUNTIFS(Test,A148,Nimi,B148,Aeg,">="&C148) -> 9
A149: Test02 | B149: Jana Kiisk | C149: 2019-11-17T11:56:09.027 | D149: 26 | E149: =COUNTIFS(Test,A149,Nimi,B149,Aeg,">="&C149) -> 6
A150: Test01 | B150: Martin Aavik | C150: 2019-11-12T16:40:37.776 | D150: 33 | E150: =COUNTIFS(Test,A150,Nimi,B150,Aeg,">="&C150) -> 8
A151: Test03 | B151: Kertu Heinsoo | C151: 2019-11-26T16:39:22.651 | D151: 60 | E151: =COUNTIFS(Test,A151,Nimi,B151,Aeg,">="&C151) -> 2
A152: Test01 | B152: Artur Piiri | C152: 2019-11-28T17:52:28.280 | D152: 78 | E152: =COUNTIFS(Test,A152,Nimi,B152,Aeg,">="&C152) -> 1
A153: Test04 | B153: Brita Kaljula | C153: 2019-11-02T15:57:33.053 | D153: 100 | E153: =COUNTIFS(Test,A153,Nimi,B153,Aeg,">="&C153) -> 10
A154: Test03 | B154: Tarvo Järv | C154: 2019-11-21T17:38:41.594 | D154: 69 | E154: =COUNTIFS(Test,A154,Nimi,B154,Aeg,">="&C154) -> 1
A155: Test02 | B155: Erik Pärn | C155: 2019-11-24T22:47:55.696 | D155: 55 | E155: =COUNTIFS(Test,A155,Nimi,B155,Aeg,">="&C155) -> 4
A156: Test02 | B156: Kristina Merila | C156: 2019-11-29T10:47:29.306 | D156: 83 | E156: =COUNTIFS(Test,A156,Nimi,B156,Aeg,">="&C156) -> 1
A157: Test02 | B157: Tarvo Järv | C157: 2019-11-13T13:05:21.533 | D157: 87 | E157: =COUNTIFS(Test,A157,Nimi,B157,Aeg,">="&C157) -> 9
A158: Test03 | B158: Kertu Heinsoo | C158: 2019-11-04T13:22:43.512 | D158: 48 | E158: =COUNTIFS(Test,A158,Nimi,B158,Aeg,">="&C158) -> 14
A159: Test01 | B159: Kertu Heinsoo | C159: 2019-11-20T23:09:53.955 | D159: 52 | E159: =COUNTIFS(Test,A159,Nimi,B159,Aeg,">="&C159) -> 5
A160: Test01 | B160: Hanna Laid | C160: 2019-11-19T12:40:09.048 | D160: 92 | E160: =COUNTIFS(Test,A160,Nimi,B160,Aeg,">="&C160) -> 6
A161: Test02 | B161: Emili Loorits | C161: 2019-11-01T19:30:00.732 | D161: 89 | E161: =COUNTIFS(Test,A161,Nimi,B161,Aeg,">="&C161) -> 11
A162: Test03 | B162: Alari Suur | C162: 2019-11-03T10:22:53.782 | D162: 81 | E162: =COUNTIFS(Test,A162,Nimi,B162,Aeg,">="&C162) -> 8
A163: Test03 | B163: Carmen Sõrmus | C163: 2019-11-09T22:21:38.750 | D163: 46 | E163: =COUNTIFS(Test,A163,Nimi,B163,Aeg,">="&C163) -> 6
A164: Test04 | B164: Urmas Lõhmus | C164: 2019-11-12T17:48:20.799 | D164: 32 | E164: =COUNTIFS(Test,A164,Nimi,B164,Aeg,">="&C164) -> 5
A165: Test03 | B165: Katrin Laurits | C165: 2019-11-28T14:38:45.536 | D165: 49 | E165: =COUNTIFS(Test,A165,Nimi,B165,Aeg,">="&C165) -> 1
A166: Test01 | B166: Tarvo Järv | C166: 2019-11-08T21:24:09.366 | D166: 40 | E166: =COUNTIFS(Test,A166,Nimi,B166,Aeg,">="&C166) -> 3
A167: Test04 | B167: Lauri Vahtra | C167: 2019-11-18T11:42:19.225 | D167: 90 | E167: =COUNTIFS(Test,A167,Nimi,B167,Aeg,">="&C167) -> 3
A168: Test04 | B168: Anna Koel | C168: 2019-11-27T19:23:51.203 | D168: 66 | E168: =COUNTIFS(Test,A168,Nimi,B168,Aeg,">="&C168) -> 5
A169: Test04 | B169: Tarvo Järv | C169: 2019-11-02T13:21:11.477 | D169: 60 | E169: =COUNTIFS(Test,A169,Nimi,B169,Aeg,">="&C169) -> 9
A170: Test02 | B170: Anna Koel | C170: 2019-11-28T09:54:05.430 | D170: 32 | E170: =COUNTIFS(Test,A170,Nimi,B170,Aeg,">="&C170) -> 1
A171: Test03 | B171: Artur Piiri | C171: 2019-11-25T11:25:27.279 | D171: 35 | E171: =COUNTIFS(Test,A171,Nimi,B171,Aeg,">="&C171) -> 1
A172: Test02 | B172: Egert Vint | C172: 2019-11-02T22:50:38.213 | D172: 81 | E172: =COUNTIFS(Test,A172,Nimi,B172,Aeg,">="&C172) -> 8
A173: Test03 | B173: Kertu Heinsoo | C173: 2019-11-13T19:31:17.253 | D173: 63 | E173: =COUNTIFS(Test,A173,Nimi,B173,Aeg,">="&C173) -> 8
A174: Test03 | B174: Lauri Vahtra | C174: 2019-11-06T09:33:37.903 | D174: 25 | E174: =COUNTIFS(Test,A174,Nimi,B174,Aeg,">="&C174) -> 10
A175: Test02 | B175: Joonas Haljas | C175: 2019-11-08T10:33:20.504 | D175: 25 | E175: =COUNTIFS(Test,A175,Nimi,B175,Aeg,">="&C175) -> 10
A176: Test03 | B176: Brita Kaljula | C176: 2019-11-16T08:19:11.680 | D176: 57 | E176: =COUNTIFS(Test,A176,Nimi,B176,Aeg,">="&C176) -> 6
A177: Test02 | B177: Emili Loorits | C177: 2019-11-11T20:52:58.476 | D177: 72 | E177: =COUNTIFS(Test,A177,Nimi,B177,Aeg,">="&C177) -> 7
A178: Test04 | B178: Armin Kaasik | C178: 2019-11-25T19:39:25.035 | D178: 54 | E178: =COUNTIFS(Test,A178,Nimi,B178,Aeg,">="&C178) -> 3
A179: Test01 | B179: Emili Loorits | C179: 2019-11-17T19:27:05.584 | D179: 62 | E179: =COUNTIFS(Test,A179,Nimi,B179,Aeg,">="&C179) -> 3
A180: Test03 | B180: Getlin Allas | C180: 2019-11-24T15:10:58.980 | D180: 65 | E180: =COUNTIFS(Test,A180,Nimi,B180,Aeg,">="&C180) -> 1
A181: Test03 | B181: Joonas Haljas | C181: 2019-11-16T15:29:16.307 | D181: 43 | E181: =COUNTIFS(Test,A181,Nimi,B181,Aeg,">="&C181) -> 6
A182: Test02 | B182: Mihkel Kulp | C182: 2019-11-01T13:03:03.548 | D182: 37 | E182: =COUNTIFS(Test,A182,Nimi,B182,Aeg,">="&C182) -> 11
A183: Test02 | B183: Hanna Laid | C183: 2019-11-03T08:57:56.563 | D183: 56 | E183: =COUNTIFS(Test,A183,Nimi,B183,Aeg,">="&C183) -> 3
A184: Test01 | B184: Viktoria Lumi | C184: 2019-11-06T10:19:12.386 | D184: 86 | E184: =COUNTIFS(Test,A184,Nimi,B184,Aeg,">="&C184) -> 7
A185: Test04 | B185: Hanna Laid | C185: 2019-11-03T15:47:04.312 | D185: 32 | E185: =COUNTIFS(Test,A185,Nimi,B185,Aeg,">="&C185) -> 15
A186: Test03 | B186: Getlin Allas | C186: 2019-11-19T23:46:40.880 | D186: 74 | E186: =COUNTIFS(Test,A186,Nimi,B186,Aeg,">="&C186) -> 3
A187: Test04 | B187: Karin Saar | C187: 2019-11-13T22:53:57.480 | D187: 21 | E187: =COUNTIFS(Test,A187,Nimi,B187,Aeg,">="&C187) -> 4
A188: Test02 | B188: Kristina Merila | C188: 2019-11-09T09:30:06.068 | D188: 38 | E188: =COUNTIFS(Test,A188,Nimi,B188,Aeg,">="&C188) -> 12
A189: Test01 | B189: Maarja Pihlak | C189: 2019-11-15T17:42:36.640 | D189: 45 | E189: =COUNTIFS(Test,A189,Nimi,B189,Aeg,">="&C189) -> 5
A190: Test01 | B190: Kertu Heinsoo | C190: 2019-11-30T22:23:05.473 | D190: 47 | E190: =COUNTIFS(Test,A190,Nimi,B190,Aeg,">="&C190) -> 1
A191: Test01 | B191: Kristina Merila | C191: 2019-11-13T08:08:38.401 | D191: 26 | E191: =COUNTIFS(Test,A191,Nimi,B191,Aeg,">="&C191) -> 3
A192: Test01 | B192: Martin Aavik | C192: 2019-11-22T09:07:55.238 | D192: 48 | E192: =COUNTIFS(Test,A192,Nimi,B192,Aeg,">="&C192) -> 4
A193: Test02 | B193: Anna Koel | C193: 2019-11-07T09:56:49.567 | D193: 61 | E193: =COUNTIFS(Test,A193,Nimi,B193,Aeg,">="&C193) -> 4
A194: Test04 | B194: Getlin Allas | C194: 2019-11-24T16:32:33.448 | D194: 38 | E194: =COUNTIFS(Test,A194,Nimi,B194,Aeg,">="&C194) -> 2
A195: Test02 | B195: Diana Taal | C195: 2019-11-18T08:09:05.990 | D195: 46 | E195: =COUNTIFS(Test,A195,Nimi,B195,Aeg,">="&C195) -> 4
A196: Test04 | B196: Hanna Laid | C196: 2019-11-23T23:06:37.372 | D196: 57 | E196: =COUNTIFS(Test,A196,Nimi,B196,Aeg,">="&C196) -> 3
A197: Test02 | B197: Emili Loorits | C197: 2019-11-23T22:01:46.344 | D197: 51 | E197: =COUNTIFS(Test,A197,Nimi,B197,Aeg,">="&C197) -> 2
A198: Test01 | B198: Lauri Vahtra | C198: 2019-11-01T22:28:04.754 | D198: 64 | E198: =COUNTIFS(Test,A198,Nimi,B198,Aeg,">="&C198) -> 4
A199: Test02 | B199: Brita Kaljula | C199: 2019-11-24T09:26:52.902 | D199: 83 | E199: =COUNTIFS(Test,A199,Nimi,B199,Aeg,">="&C199) -> 2
A200: Test01 | B200: Katrin Laurits | C200: 2019-11-22T22:30:32.207 | D200: 75 | E200: =COUNTIFS(Test,A200,Nimi,B200,Aeg,">="&C200) -> 1
A201: Test01 | B201: Reimo Kala | C201: 2019-11-20T21:18:40.694 | D201: 41 | E201: =COUNTIFS(Test,A201,Nimi,B201,Aeg,">="&C201) -> 1
... 972 more rows

Sheet testid (2) (hidden)
F1: 08:00:00 | G1: 23:55:00 | J1: Test01 | K1: Test02 | L1: Test03 | M1: Test04
F2: 2019-11-01 | G2: 2019-11-30 | I2: Katrin Laurits | J2: =COUNTIFS($A:$A,J$1,$B:$B,$I2) -> 10 | K2: =COUNTIFS($A:$A,K$1,$B:$B,$I2) -> 7 | L2: 10 | M2: 8
I3: Anette Lepp | J3: =COUNTIFS($A:$A,J$1,$B:$B,$I3) -> 6 | K3: 8 | L3: 10 | M3: 7
A4: Test | B4: Nimi | C4: Aeg | D4: Tulemus | G4: Test01 | I4: Reimo Kala | J4: 7 | K4: 7 | L4: 10 | M4: 5
A5: =INDEX($G$4:$G$7,RANDBETWEEN(1,4)) -> Test03 | B5: =INDEX($I$2:$I$36,RANDBETWEEN(1,35)) -> Markus Niidas | C5: =RANDBETWEEN($F$2,$G$2)+$F$1+RAND()*($G$1-$F$1) -> 2019-11-17T23:32:28.184 | D5: =RANDBETWEEN(20,100) -> 57 | G5: Test02 | I5: Egert Vint | J5: 13 | K5: 12 | L5: 6 | M5: 14
A6: =INDEX($G$4:$G$7,RANDBETWEEN(1,4)) -> Test02 | B6: =INDEX($I$2:$I$36,RANDBETWEEN(1,35)) -> Egert Vint | C6: =RANDBETWEEN($F$2,$G$2)+$F$1+RAND()*($G$1-$F$1) -> 2019-11-02T19:10:31.461 | D6: =RANDBETWEEN(20,100) -> 81 | G6: Test03 | I6: Carmen Sõrmus | J6: 11 | K6: 8 | L6: 5 | M6: 17
A7: Test01 | B7: Anna Koel | C7: 2019-11-11T16:07:42.342 | D7: 25 | G7: Test04 | I7: Armin Kaasik | J7: 5 | K7: 8 | L7: 6 | M7: 6
A8: Test01 | B8: Artur Piiri | C8: 2019-11-11T19:30:25.092 | D8: 89 | I8: Jana Kiisk | J8: 5 | K8: 5 | L8: 4 | M8: 6
A9: Test03 | B9: Getlin Allas | C9: 2019-11-24T18:31:32.922 | D9: 67 | I9: Kaspar Raude | J9: 13 | K9: 9 | L9: 9 | M9: 9
A10: Test03 | B10: Tarvo Järv | C10: 2019-11-12T11:36:24.656 | D10: 23 | F10: 35 | I10: Karin Saar | J10: 11 | K10: 10 | L10: 13 | M10: 6
A11: Test02 | B11: Lauri Vahtra | C11: 2019-11-18T22:49:49.800 | D11: 90 | F11: 4 | I11: Hanna Laid | J11: 4 | K11: 4 | L11: 10 | M11: 11
A12: Test04 | B12: Diana Taal | C12: 2019-11-30T12:24:30.892 | D12: 31 | F12: 5 | I12: Mihkel Kulp | J12: 7 | K12: 11 | L12: 3 | M12: 13
A13: Test04 | B13: Maarja Pihlak | C13: 2019-11-18T16:24:00.655 | D13: 68 | F13: =F10*F11*F12 -> 700 | I13: Markus Niidas | J13: 10 | K13: 17 | L13: 11 | M13: 12
A14: Test03 | B14: Emili Loorits | C14: 2019-11-21T16:12:45.132 | D14: 81 | I14: Alari Suur | J14: 6 | K14: 11 | L14: 7 | M14: 8
A15: Test01 | B15: Kertu Heinsoo | C15: 2019-11-21T20:30:38.929 | D15: 70 | I15: Erik Pärn | J15: 8 | K15: 5 | L15: 4 | M15: 6
A16: Test03 | B16: Hans Kukk | C16: 2019-11-24T23:22:13.735 | D16: 80 | I16: Martin Aavik | J16: 6 | K16: 11 | L16: 7 | M16: 11
A17: Test04 | B17: Carmen Sõrmus | C17: 2019-11-13T10:50:23.362 | D17: 21 | I17: Maarja Pihlak | J17: 12 | K17: 7 | L17: 7 | M17: 14
A18: Test03 | B18: Reimo Kala | C18: 2019-11-24T15:30:56.871 | D18: 28 | I18: Urmas Lõhmus | J18: 6 | K18: 4 | L18: 11 | M18: 12
A19: Test02 | B19: Markus Niidas | C19: 2019-11-15T21:16:36.970 | D19: 20 | I19: Lauri Vahtra | J19: 5 | K19: 8 | L19: 7 | M19: 9
A20: Test04 | B20: Markus Niidas | C20: 2019-11-05T12:36:05.297 | D20: 99 | I20: Emili Loorits | J20: 9 | K20: 4 | L20: 9 | M20: 8
A21: Test02 | B21: Diana Taal | C21: 2019-11-06T17:32:40.715 | D21: 35 | I21: Jaagup Kivi | J21: 3 | K21: 11 | L21: 4 | M21: 9
A22: Test03 | B22: Rasmus Kroon | C22: 2019-11-27T21:01:42.296 | D22: 22 | I22: Joonas Haljas | J22: 5 | K22: 9 | L22: 7 | M22: 8
A23: Test03 | B23: Paul Hein | C23: 2019-11-20T08:17:01.373 | D23: 83 | I23: Robert Lentso | J23: 8 | K23: 10 | L23: 7 | M23: 7
A24: Test04 | B24: Martin Aavik | C24: 2019-11-21T10:40:37.715 | D24: 85 | I24: Viktoria Lumi | J24: 6 | K24: 9 | L24: 8 | M24: 5
A25: Test02 | B25: Martin Aavik | C25: 2019-11-08T14:29:19.665 | D25: 53 | I25: Sander Kell | J25: 7 | K25: 6 | L25: 11 | M25: 8
A26: Test02 | B26: Anna Koel | C26: 2019-11-26T12:47:49.894 | D26: 75 | I26: Hans Kukk | J26: 6 | K26: 9 | L26: 6 | M26: 10
A27: Test02 | B27: Egert Vint | C27: 2019-11-12T21:34:22.322 | D27: 53 | I27: Diana Taal | J27: 13 | K27: 9 | L27: 3 | M27: 12
A28: Test02 | B28: Hans Kukk | C28: 2019-11-12T10:24:04.718 | D28: 95 | I28: Kertu Heinsoo | J28: 6 | K28: 9 | L28: 12 | M28: 7
A29: Test01 | B29: Artur Piiri | C29: 2019-11-12T23:26:13.285 | D29: 27 | I29: Tarvo Järv | J29: 5 | K29: 9 | L29: 8 | M29: 8
A30: Test02 | B30: Viktoria Lumi | C30: 2019-11-01T09:31:40.379 | D30: 78 | I30: Paul Hein | J30: 10 | K30: 12 | L30: 15 | M30: 6
A31: Test03 | B31: Anna Koel | C31: 2019-11-17T18:09:56.746 | D31: 31 | I31: Artur Piiri | J31: 11 | K31: 8 | L31: 11 | M31: 7
A32: Test04 | B32: Hanna Laid | C32: 2019-11-28T15:09:53.512 | D32: 43 | I32: Getlin Allas | J32: 7 | K32: 15 | L32: 7 | M32: 8
A33: Test01 | B33: Reimo Kala | C33: 2019-11-12T12:04:19.293 | D33: 49 | I33: Brita Kaljula | J33: 8 | K33: 14 | L33: 10 | M33: 9
A34: Test04 | B34: Anette Lepp | C34: 2019-11-21T08:41:00.515 | D34: 63 | I34: Anna Koel | J34: 3 | K34: 10 | L34: 8 | M34: 11
A35: Test03 | B35: Paul Hein | C35: 2019-11-25T10:47:54.385 | D35: 55 | I35: Kristina Merila | J35: 10 | K35: 4 | L35: 7 | M35: 6
A36: Test02 | B36: Tarvo Järv | C36: 2019-11-25T18:49:48.802 | D36: 65 | I36: Rasmus Kroon | J36: 7 | K36: 8 | L36: 9 | M36: 7
A37: Test01 | B37: Diana Taal | C37: 2019-11-23T12:49:13.392 | D37: 37
A38: Test04 | B38: Erik Pärn | C38: 2019-11-22T16:57:52.247 | D38: 73
A39: Test02 | B39: Getlin Allas | C39: 2019-11-19T10:13:46.791 | D39: 89
A40: Test04 | B40: Anna Koel | C40: 2019-11-16T10:28:31.850 | D40: 41
A41: Test04 | B41: Maarja Pihlak | C41: 2019-11-18T18:46:36.617 | D41: 88
A42: Test01 | B42: Brita Kaljula | C42: 2019-11-17T11:57:51.962 | D42: 86
A43: Test01 | B43: Katrin Laurits | C43: 2019-11-19T19:03:59.091 | D43: 61
A44: Test02 | B44: Egert Vint | C44: 2019-11-25T17:28:57.761 | D44: 30
A45: Test03 | B45: Artur Piiri | C45: 2019-11-12T08:20:57.633 | D45: 65
A46: Test02 | B46: Hanna Laid | C46: 2019-11-09T22:20:21.921 | D46: 92
A47: Test02 | B47: Paul Hein | C47: 2019-11-06T19:21:43.048 | D47: 76
A48: Test01 | B48: Kaspar Raude | C48: 2019-11-23T20:41:06.353 | D48: 83
A49: Test03 | B49: Kertu Heinsoo | C49: 2019-11-26T19:19:00.950 | D49: 32
A50: Test03 | B50: Paul Hein | C50: 2019-11-04T20:54:14.203 | D50: 22
A51: Test04 | B51: Urmas Lõhmus | C51: 2019-11-28T20:25:49.922 | D51: 68
A52: Test04 | B52: Erik Pärn | C52: 2019-11-11T22:17:54.884 | D52: 82
A53: Test01 | B53: Kristina Merila | C53: 2019-11-24T12:15:25.629 | D53: 100
A54: Test03 | B54: Erik Pärn | C54: 2019-11-28T17:55:20.809 | D54: 43
A55: Test04 | B55: Getlin Allas | C55: 2019-11-27T21:06:57.365 | D55: 28
A56: Test04 | B56: Jana Kiisk | C56: 2019-11-08T21:28:20.889 | D56: 89
A57: Test04 | B57: Kaspar Raude | C57: 2019-11-11T11:06:52.489 | D57: 51
A58: Test02 | B58: Hans Kukk | C58: 2019-11-22T21:03:38.543 | D58: 73
A59: Test03 | B59: Egert Vint | C59: 2019-11-05T17:23:42.454 | D59: 43
A60: Test01 | B60: Emili Loorits | C60: 2019-11-14T18:39:51.066 | D60: 63
A61: Test02 | B61: Joonas Haljas | C61: 2019-11-07T10:35:26.700 | D61: 29
A62: Test01 | B62: Emili Loorits | C62: 2019-11-29T17:12:37.906 | D62: 61
A63: Test03 | B63: Kristina Merila | C63: 2019-11-03T23:21:29.190 | D63: 29
A64: Test02 | B64: Robert Lentso | C64: 2019-11-16T17:16:36.209 | D64: 89
A65: Test01 | B65: Kertu Heinsoo | C65: 2019-11-27T15:33:23.327 | D65: 46
A66: Test04 | B66: Artur Piiri | C66: 2019-11-23T22:21:49.381 | D66: 29
A67: Test04 | B67: Anette Lepp | C67: 2019-11-17T16:41:52.686 | D67: 48
A68: Test04 | B68: Hans Kukk | C68: 2019-11-17T12:14:09.343 | D68: 45
A69: Test02 | B69: Rasmus Kroon | C69: 2019-11-24T13:19:53.649 | D69: 77
A70: =INDEX($G$4:$G$7,RANDBETWEEN(1,4)) -> Test01 | B70: =INDEX($I$2:$I$36,RANDBETWEEN(1,35)) -> Markus Niidas | C70: =RANDBETWEEN($F$2,$G$2)+$F$1+RAND()*($G$1-$F$1) -> 2019-11-03T12:56:46.076 | D70: =RANDBETWEEN(20,100) -> 77
A71: Test02 | B71: Artur Piiri | C71: 2019-11-06T16:38:46.109 | D71: 76
A72: Test04 | B72: Artur Piiri | C72: 2019-11-24T10:44:11.983 | D72: 82
A73: Test01 | B73: Mihkel Kulp | C73: 2019-11-17T20:50:34.581 | D73: 58
A74: Test02 | B74: Paul Hein | C74: 2019-11-17T11:00:33.839 | D74: 95
A75: Test01 | B75: Markus Niidas | C75: 2019-11-06T19:46:06.416 | D75: 23
A76: Test03 | B76: Paul Hein | C76: 2019-11-16T08:50:02.945 | D76: 71
A77: Test01 | B77: Kristina Merila | C77: 2019-11-28T11:07:56.076 | D77: 22
A78: Test04 | B78: Maarja Pihlak | C78: 2019-11-13T13:58:55.491 | D78: 64
A79: Test03 | B79: Karin Saar | C79: 2019-11-26T09:31:13.697 | D79: 45
A80: Test01 | B80: Diana Taal | C80: 2019-11-12T16:47:53.566 | D80: 40
A81: Test03 | B81: Anna Koel | C81: 2019-11-23T16:26:57.517 | D81: 84
A82: Test03 | B82: Maarja Pihlak | C82: 2019-11-05T16:24:58.246 | D82: 23
A83: Test03 | B83: Markus Niidas | C83: 2019-11-02T13:23:12.848 | D83: 73
A84: Test03 | B84: Hanna Laid | C84: 2019-11-17T18:21:22.238 | D84: 89
A85: Test04 | B85: Rasmus Kroon | C85: 2019-11-10T11:25:26.376 | D85: 57
A86: Test03 | B86: Maarja Pihlak | C86: 2019-11-26T12:12:02.232 | D86: 83
A87: Test04 | B87: Karin Saar | C87: 2019-11-24T17:35:54.924 | D87: 25
A88: Test01 | B88: Mihkel Kulp | C88: 2019-11-22T11:58:40.870 | D88: 29
A89: Test02 | B89: Paul Hein | C89: 2019-11-13T13:41:39.164 | D89: 77
A90: Test01 | B90: Sander Kell | C90: 2019-11-30T14:05:56.975 | D90: 92
A91: Test03 | B91: Lauri Vahtra | C91: 2019-11-04T15:08:02.727 | D91: 97
A92: Test03 | B92: Robert Lentso | C92: 2019-11-02T08:15:21.914 | D92: 83
A93: Test04 | B93: Lauri Vahtra | C93: 2019-11-06T18:10:08.608 | D93: 27
A94: Test02 | B94: Sander Kell | C94: 2019-11-07T20:51:51.832 | D94: 79
A95: Test01 | B95: Markus Niidas | C95: 2019-11-06T12:47:00.301 | D95: 67
A96: Test02 | B96: Markus Niidas | C96: 2019-11-07T21:22:22.153 | D96: 73
A97: Test03 | B97: Anna Koel | C97: 2019-11-30T22:18:03.909 | D97: 30
A98: Test03 | B98: Armin Kaasik | C98: 2019-11-30T11:50:31.414 | D98: 25
A99: Test04 | B99: Mihkel Kulp | C99: 2019-11-24T08:18:48.416 | D99: 42
A100: Test01 | B100: Kristina Merila | C100: 2019-11-09T16:45:27.820 | D100: 50
A101: Test01 | B101: Paul Hein | C101: 2019-11-25T19:57:56.790 | D101: 47
A102: Test01 | B102: Viktoria Lumi | C102: 2019-11-26T18:39:42.362 | D102: 43
A103: Test04 | B103: Joonas Haljas | C103: 2019-11-18T23:00:06.963 | D103: 90
A104: Test01 | B104: Maarja Pihlak | C104: 2019-11-10T23:21:20.300 | D104: 47
A105: Test03 | B105: Paul Hein | C105: 2019-11-24T09:58:48.788 | D105: 31
A106: Test04 | B106: Lauri Vahtra | C106: 2019-11-17T13:02:25.409 | D106: 81
A107: Test04 | B107: Maarja Pihlak | C107: 2019-11-24T12:45:31.013 | D107: 43
A108: Test03 | B108: Paul Hein | C108: 2019-11-09T18:31:13.123 | D108: 40
A109: Test04 | B109: Lauri Vahtra | C109: 2019-11-16T09:32:46.249 | D109: 24
A110: Test02 | B110: Markus Niidas | C110: 2019-11-21T20:59:02.498 | D110: 91
A111: Test03 | B111: Artur Piiri | C111: 2019-11-03T18:58:47.906 | D111: 35
A112: Test01 | B112: Maarja Pihlak | C112: 2019-11-28T11:04:55.163 | D112: 89
A113: Test02 | B113: Robert Lentso | C113: 2019-11-29T21:21:23.535 | D113: 33
A114: Test01 | B114: Rasmus Kroon | C114: 2019-11-19T20:03:27.656 | D114: 50
A115: Test01 | B115: Katrin Laurits | C115: 2019-11-29T15:46:05.029 | D115: 62
A116: Test01 | B116: Alari Suur | C116: 2019-11-30T17:05:50.262 | D116: 92
A117: Test01 | B117: Egert Vint | C117: 2019-11-17T21:39:49.294 | D117: 46
A118: Test03 | B118: Karin Saar | C118: 2019-11-15T19:57:11.490 | D118: 91
A119: Test02 | B119: Brita Kaljula | C119: 2019-11-11T19:28:27.023 | D119: 74
A120: Test04 | B120: Kaspar Raude | C120: 2019-11-22T19:06:56.427 | D120: 26
A121: Test04 | B121: Egert Vint | C121: 2019-11-30T20:00:16.769 | D121: 78
A122: Test03 | B122: Katrin Laurits | C122: 2019-11-18T14:46:00.166 | D122: 73
A123: Test03 | B123: Emili Loorits | C123: 2019-11-03T20:00:55.713 | D123: 36
A124: Test02 | B124: Kaspar Raude | C124: 2019-11-22T22:52:49.181 | D124: 96
A125: Test02 | B125: Lauri Vahtra | C125: 2019-11-19T08:40:40.198 | D125: 85
A126: Test02 | B126: Mihkel Kulp | C126: 2019-11-20T19:45:09.133 | D126: 47
A127: Test02 | B127: Mihkel Kulp | C127: 2019-11-09T23:00:02.956 | D127: 89
A128: Test02 | B128: Getlin Allas | C128: 2019-11-22T14:32:01.887 | D128: 30
A129: Test04 | B129: Carmen Sõrmus | C129: 2019-11-09T15:25:14.781 | D129: 36
A130: Test03 | B130: Paul Hein | C130: 2019-11-23T15:28:58.648 | D130: 96
A131: Test01 | B131: Diana Taal | C131: 2019-11-23T16:02:12.616 | D131: 20
A132: Test03 | B132: Erik Pärn | C132: 2019-11-23T14:54:05.495 | D132: 37
A133: Test01 | B133: Diana Taal | C133: 2019-11-13T22:57:11.769 | D133: 54
A134: =INDEX($G$4:$G$7,RANDBETWEEN(1,4)) -> Test02 | B134: =INDEX($I$2:$I$36,RANDBETWEEN(1,35)) -> Erik Pärn | C134: =RANDBETWEEN($F$2,$G$2)+$F$1+RAND()*($G$1-$F$1) -> 2019-11-26T12:22:15.997 | D134: =RANDBETWEEN(20,100) -> 37
A135: Test02 | B135: Maarja Pihlak | C135: 2019-11-19T16:40:30.515 | D135: 37
A136: Test03 | B136: Urmas Lõhmus | C136: 2019-11-22T20:05:07.715 | D136: 23
A137: Test03 | B137: Karin Saar | C137: 2019-11-01T23:35:29.711 | D137: 20
A138: Test01 | B138: Karin Saar | C138: 2019-11-24T19:46:14.640 | D138: 75
A139: Test01 | B139: Anette Lepp | C139: 2019-11-02T19:23:33.199 | D139: 98
A140: Test01 | B140: Katrin Laurits | C140: 2019-11-21T20:11:13.325 | D140: 80
A141: Test04 | B141: Maarja Pihlak | C141: 2019-11-15T11:17:23.743 | D141: 46
A142: Test04 | B142: Karin Saar | C142: 2019-11-17T17:43:42.273 | D142: 87
A143: Test04 | B143: Robert Lentso | C143: 2019-11-06T08:40:05.337 | D143: 97
A144: Test03 | B144: Karin Saar | C144: 2019-11-23T13:06:55.631 | D144: 74
A145: Test02 | B145: Anna Koel | C145: 2019-11-22T09:20:22.459 | D145: 42
A146: Test02 | B146: Getlin Allas | C146: 2019-11-01T10:24:20.493 | D146: 94
A147: Test01 | B147: Jana Kiisk | C147: 2019-11-21T21:29:53.938 | D147: 35
A148: Test04 | B148: Katrin Laurits | C148: 2019-11-27T18:19:33.792 | D148: 42
A149: Test03 | B149: Reimo Kala | C149: 2019-11-26T11:30:58.726 | D149: 74
A150: Test04 | B150: Kertu Heinsoo | C150: 2019-11-11T19:03:45.336 | D150: 42
A151: Test04 | B151: Katrin Laurits | C151: 2019-11-13T17:41:21.282 | D151: 44
A152: Test02 | B152: Maarja Pihlak | C152: 2019-11-01T12:12:23.190 | D152: 21
A153: Test04 | B153: Kaspar Raude | C153: 2019-11-04T11:18:30.780 | D153: 37
A154: Test04 | B154: Reimo Kala | C154: 2019-11-11T20:46:32.464 | D154: 37
A155: Test02 | B155: Paul Hein | C155: 2019-11-10T12:35:59.063 | D155: 77
A156: Test04 | B156: Urmas Lõhmus | C156: 2019-11-05T19:00:30.333 | D156: 81
A157: Test02 | B157: Egert Vint | C157: 2019-11-20T15:05:09.878 | D157: 37
A158: Test04 | B158: Anna Koel | C158: 2019-11-08T11:46:21.445 | D158: 95
A159: Test01 | B159: Karin Saar | C159: 2019-11-22T20:43:52.895 | D159: 69
A160: Test04 | B160: Rasmus Kroon | C160: 2019-11-16T14:46:51.431 | D160: 39
A161: Test03 | B161: Emili Loorits | C161: 2019-11-04T08:52:26.302 | D161: 97
A162: Test01 | B162: Karin Saar | C162: 2019-11-21T14:29:42.382 | D162: 38
A163: Test01 | B163: Carmen Sõrmus | C163: 2019-11-13T18:06:52.895 | D163: 44
A164: Test04 | B164: Sander Kell | C164: 2019-11-29T10:01:21.563 | D164: 53
A165: Test02 | B165: Tarvo Järv | C165: 2019-11-28T17:08:18.763 | D165: 70
A166: Test03 | B166: Tarvo Järv | C166: 2019-11-27T19:52:01.680 | D166: 73
A167: Test01 | B167: Robert Lentso | C167: 2019-11-13T13:09:23.272 | D167: 31
A168: Test04 | B168: Urmas Lõhmus | C168: 2019-11-25T23:42:26.118 | D168: 33
A169: Test03 | B169: Robert Lentso | C169: 2019-11-14T13:28:15.601 | D169: 20
A170: Test03 | B170: Brita Kaljula | C170: 2019-11-02T20:16:07.467 | D170: 82
A171: Test01 | B171: Emili Loorits | C171: 2019-11-20T19:27:25.755 | D171: 30
A172: Test01 | B172: Robert Lentso | C172: 2019-11-02T11:46:54.502 | D172: 56
A173: Test02 | B173: Kristina Merila | C173: 2019-11-25T14:19:55.034 | D173: 50
A174: Test02 | B174: Egert Vint | C174: 2019-11-20T13:28:15.416 | D174: 95
A175: Test02 | B175: Kaspar Raude | C175: 2019-11-11T22:00:56.056 | D175: 89
A176: Test02 | B176: Karin Saar | C176: 2019-11-27T21:18:09.282 | D176: 22
A177: Test03 | B177: Alari Suur | C177: 2019-11-17T21:33:55.002 | D177: 91
A178: Test04 | B178: Armin Kaasik | C178: 2019-11-19T16:44:45.719 | D178: 58
A179: Test03 | B179: Joonas Haljas | C179: 2019-11-08T18:05:02.543 | D179: 92
A180: Test02 | B180: Alari Suur | C180: 2019-11-07T14:55:23.822 | D180: 60
A181: Test01 | B181: Kertu Heinsoo | C181: 2019-11-28T23:50:32.302 | D181: 63
A182: Test03 | B182: Tarvo Järv | C182: 2019-11-05T22:15:53.205 | D182: 36
A183: Test04 | B183: Anna Koel | C183: 2019-11-06T13:15:21.459 | D183: 62
A184: Test02 | B184: Jaagup Kivi | C184: 2019-11-10T15:29:57.352 | D184: 46
A185: Test03 | B185: Kertu Heinsoo | C185: 2019-11-25T21:09:51.309 | D185: 48
A186: Test01 | B186: Markus Niidas | C186: 2019-11-15T11:11:42.478 | D186: 65
A187: Test03 | B187: Katrin Laurits | C187: 2019-11-01T11:25:59.022 | D187: 25
A188: Test01 | B188: Maarja Pihlak | C188: 2019-11-12T08:21:52.999 | D188: 20
A189: Test03 | B189: Markus Niidas | C189: 2019-11-22T14:27:56.374 | D189: 66
A190: Test04 | B190: Markus Niidas | C190: 2019-11-23T10:29:01.708 | D190: 46
A191: Test02 | B191: Katrin Laurits | C191: 2019-11-11T21:08:56.274 | D191: 76
A192: Test03 | B192: Viktoria Lumi | C192: 2019-11-14T12:38:54.066 | D192: 84
A193: Test03 | B193: Artur Piiri | C193: 2019-11-01T08:50:16.333 | D193: 74
A194: Test04 | B194: Urmas Lõhmus | C194: 2019-11-06T13:57:05.905 | D194: 94
A195: Test01 | B195: Karin Saar | C195: 2019-11-01T16:26:57.525 | D195: 20
A196: Test04 | B196: Kertu Heinsoo | C196: 2019-11-13T15:50:42.163 | D196: 65
A197: Test01 | B197: Markus Niidas | C197: 2019-11-09T21:03:23.317 | D197: 20
A198: =INDEX($G$4:$G$7,RANDBETWEEN(1,4)) -> Test01 | B198: =INDEX($I$2:$I$36,RANDBETWEEN(1,35)) -> Emili Loorits | C198: =RANDBETWEEN($F$2,$G$2)+$F$1+RAND()*($G$1-$F$1) -> 2019-11-02T18:42:50.859 | D198: =RANDBETWEEN(20,100) -> 21
A199: Test04 | B199: Urmas Lõhmus | C199: 2019-11-30T22:33:57.470 | D199: 40
A200: Test02 | B200: Kertu Heinsoo | C200: 2019-11-13T11:13:04.143 | D200: 55
... 973 more rows
